Workbook

Sheet Instrucciones
A1: Matriz General de Riesgos (MGR)
A2: Metodología para el análisis de riesgos con enfoque multiamenaza y criterios probabilísticos en los proyectos de inversión pública
A4: Instrucciones:
A5: Lea estas instrucciones cuidadosamente.
B6: 1- Al dar clic a los botones azules ubicados en la Hoja "Herramienta" se desplegaran las pestañas que deben ser completadas para estimar el Costo Total Esperado.
B7: 2- En la pestaña MGR se debe completar toda la información solicitada. En caso de requerir líneas adicionales se debe dar clic en el botón Agregar Filas ubicado en la parte superior derecha. Las celdas bloqueadas se calculan de forma automática.
B8: 3- Las pestaña Indicadores contiene los insumos necesarios para completar las columnas de Tipo de Riesgo, Nivel de Impacto y Probabilidad de Ocurrencia de la MGR permitidos para la etapa de perfil.
B9: 4- En la Hoja MGR, para realizar la simulación de Montecarlo y obtener el Costo Total Esperado, se debe dar clic en el botón Calcular Costo Esperado. De esta manera Excel realizará el cálculo de manera automática y se abrirá una nueva Hoja llamada Resultados.
B10: 5. Cuando se requiera realizar la evaluación económica-social se deberá ajustar el valor del Costo Base en la matriz MGR o en las hojas de distribuciones que corresponda, utilizando precios sociales y volver a estimar el Costo Total Esperado dando clic en el botón "Calcular Costo Esperado".
B11: 6- Si el análsis del proyecto corresponde a la etapa de prefactibilidad o factibilidad, se deberá completar la información de la Hoja MGR y adicionalmente se deberá incluir la información de cada riesgo según el tipo de distribución de los datos seleccionados por el experto. Para esto, se deberá seleccionar la distribución en los botones ubicados en la Hoja Herramienta. Las distribuciones disponibles son: Beta, Normal, Lognormal, Triangular, Erlang, Exponencial, Gamma, Pert y Uniforme. Cada una de las Hojas cuenta con los parámetros necesarios para el cálculo así como la respectiva función para su cálculo automático. En el caso de la distribución triangular se debe completar su hoja respectiva, no se podrán utilizar los resultados del cálculo del costo esperado de la hoja MGR ya que estos se eliminaran al incluir datos en cualquier otra Hoja.
B12: 7- Una vez que se incluyan los datos en las distintas distribuciones se deberá dar clic en el botón "Calcular Costo Esperado" ubicado en cualquiera de las Hojas de distribución de probabilidad o en la Hoja MGR.
B13: 8- Este botón "Calcular Costo Esperado" calculará dicho valor para lo cual tomará en cuenta los valores de la Hoja MGR, siempre y cuando no existan datos en otras Hojas del libro. En caso de que se ingresen datos en las Hojas de las distribuciones, el cálculo se realizará tomando en cuenta los valores de las hojas que tengan datos y no se tomarán en cuenta los valores de la Hoja MGR, ni de aquellas hojas que no contengan datos. Esto es así para evitar una doble contabilización. Cada vez que se dé clic a este botón se generará una nueva simulación con nuevos resultados.
A14: Nota
A15: * En la Hoja MGR, se asumirá como supuestos que todos los riesgos tienen una distribución triangular con desviación igual a +-25% para calcular el máximo y el mínimo. Este cálculo únicamente será válido a nivel de perfil y se realiza de manera automática en esta Hoja.
A16: * El valor de la media del Costo Total Esperado de la simulación en MGR,será el valor que se debe trasladar al análisis financiero del proyecto.
A17: * Además de la Hoja Resultados se desplegará una hoja denominada XLRisk Results1 que corresponde a los resultados de las simulaciones de cada riesgo. Estas hojas se crearán cada vez que se dé clic en el botón "Calcular Costo Esperado". Las mismas pueden ser eliminadas si el usuario lo desea, sin embargo, los resultados que se muestran en la Hoja Resultados serán reemplazados cada vez que se haga una simulación, por lo que el único registro de simulaciones anteriores serán estas Hojas.
A21: Metodología para el Análisis de Riesgos con enfoque multiamenaza y criterios probabilísticos en los proyectos de inversión Pública
A22: Versión | B22: Tarea | C22: Responsable | D22: Institución | E22: Descripción del cambio | F22: Fecha
A23: N° 01 | B23: Elaboración | C23: Jason Rivera Ugarte | D23: Ministerio de Planificación Nacional y Política Económica. | E23: Elaboración primera versión | F23: 2022-05-26
B24: Elaboración | C24: Melisa Oviedo Alfaro | D24: Ministerio de Hacienda, DCP-UAPP | E24: Elaboración primera versión | F24: 2022-05-26
B25: Revisión | C25: Walter Ledezma Rojas | D25: Ministerio de Hacienda, DCP-UAPP | E25: Revisión primera versión
B26: Revisión | C26: Johanna Salas Jiménez | D26: Ministerio de Planificación Nacional y Política Económica. | E26: Revisión primera versión
A27: Versión final: | C27: Insertar fecha……………..

Sheet Herramienta
B3: Matriz General de Riesgos (MGR)
B4: Metodología para el análisis de riesgos con enfoque multiamenaza y criterios probabilísticos en los proyectos de inversión pública

Sheet MGR
B1: Nombre del proyecto:
B2: Sector:
B3: Institución:
A4: . | B4: Identificación | I4: Cuantificación | N4: Valoración
A5: ID | B5: Riesgo | C5: Descripción | D5: Causa | E5: Tipo de Riesgos | F5: Etapa | G5: Asignación | H5: Medidas de mitigación | I5: Incidencia | J5: Nivel de impacto | K5: Probabilidad de ocurrencia | L5: Probabilidad conjunta | M5: Clasificación | N5: Costo base | O5: Costo de impacto | P5: Costo afectado | Q5: Tipo de distribución | R5: Costo esperado
A6: 1 | L6: =K6*J6 -> 0 | M6: =IF(L6=0,"ND",IF(L6>=Hoja4!$C$21,Hoja4!$B$21,IF(L6>=Hoja4!$C$22,Hoja4!$B$22,IF(MGR!L6>=Hoja4!$C$23,Hoja4!$B$23,IF(MGR!L6>=Hoja4!$C$24,Hoja4!$B$24,Hoja4!$B$25))))) -> ND | O6: =I6*N6 -> 0 | P6: =O6*L6 -> 0 | Q6: Triangular | R6: =IF((OR(SUM(Tabla12[Costo Esperado])>0,SUM(Tabla2[Costo Esperado])>0,SUM(Tabla25[Costo Esperado])>0,SUM(Tabla24[Costo Esperado])>0,SUM(Tabla246[Costo Esperado])>0,SUM(Tabla2467[Costo Esperado])>0,SUM(Tabla248[Costo Esperado])>0,SUM(Tabla249[Costo Esperado])>0,SUM(Tabla24910[Costo Esperado])>0)),"ELIMINAR",IF(P6>0,[4]!RiskTriang(P6*0.75,P6,P6*1.25),"ELIMINAR")) -> ELIMINAR
A7: 2 | L7: =K7*J7 -> 0 | M7: =IF(L7=0,"ND",IF(L7>=Hoja4!$C$21,Hoja4!$B$21,IF(L7>=Hoja4!$C$22,Hoja4!$B$22,IF(MGR!L7>=Hoja4!$C$23,Hoja4!$B$23,IF(MGR!L7>=Hoja4!$C$24,Hoja4!$B$24,Hoja4!$B$25))))) -> ND | O7: =I7*N7 -> 0 | P7: 0 | Q7: Triangular | R7: =IF((OR(SUM(Tabla12[Costo Esperado])>0,SUM(Tabla2[Costo Esperado])>0,SUM(Tabla25[Costo Esperado])>0,SUM(Tabla24[Costo Esperado])>0,SUM(Tabla246[Costo Esperado])>0,SUM(Tabla2467[Costo Esperado])>0,SUM(Tabla248[Costo Esperado])>0,SUM(Tabla249[Costo Esperado])>0,SUM(Tabla24910[Costo Esperado])>0)),"ELIMINAR",IF(P7>0,[4]!RiskTriang(P7*0.75,P7,P7*1.25),"ELIMINAR")) -> ELIMINAR
A8: 3 | L8: 0 | M8: =IF(L8=0,"ND",IF(L8>=Hoja4!$C$21,Hoja4!$B$21,IF(L8>=Hoja4!$C$22,Hoja4!$B$22,IF(MGR!L8>=Hoja4!$C$23,Hoja4!$B$23,IF(MGR!L8>=Hoja4!$C$24,Hoja4!$B$24,Hoja4!$B$25))))) -> ND | O8: 0 | P8: 0 | Q8: Triangular | R8: =IF((OR(SUM(Tabla12[Costo Esperado])>0,SUM(Tabla2[Costo Esperado])>0,SUM(Tabla25[Costo Esperado])>0,SUM(Tabla24[Costo Esperado])>0,SUM(Tabla246[Costo Esperado])>0,SUM(Tabla2467[Costo Esperado])>0,SUM(Tabla248[Costo Esperado])>0,SUM(Tabla249[Costo Esperado])>0,SUM(Tabla24910[Costo Esperado])>0)),"ELIMINAR",IF(P8>0,[4]!RiskTriang(P8*0.75,P8,P8*1.25),"ELIMINAR")) -> ELIMINAR
A9: 4 | L9: 0 | M9: =IF(L9=0,"ND",IF(L9>=Hoja4!$C$21,Hoja4!$B$21,IF(L9>=Hoja4!$C$22,Hoja4!$B$22,IF(MGR!L9>=Hoja4!$C$23,Hoja4!$B$23,IF(MGR!L9>=Hoja4!$C$24,Hoja4!$B$24,Hoja4!$B$25))))) -> ND | O9: 0 | P9: 0 | Q9: Triangular | R9: =IF((OR(SUM(Tabla12[Costo Esperado])>0,SUM(Tabla2[Costo Esperado])>0,SUM(Tabla25[Costo Esperado])>0,SUM(Tabla24[Costo Esperado])>0,SUM(Tabla246[Costo Esperado])>0,SUM(Tabla2467[Costo Esperado])>0,SUM(Tabla248[Costo Esperado])>0,SUM(Tabla249[Costo Esperado])>0,SUM(Tabla24910[Costo Esperado])>0)),"ELIMINAR",IF(P9>0,[4]!RiskTriang(P9*0.75,P9,P9*1.25),"ELIMINAR")) -> ELIMINAR
A10: 5 | L10: 0 | M10: =IF(L10=0,"ND",IF(L10>=Hoja4!$C$21,Hoja4!$B$21,IF(L10>=Hoja4!$C$22,Hoja4!$B$22,IF(MGR!L10>=Hoja4!$C$23,Hoja4!$B$23,IF(MGR!L10>=Hoja4!$C$24,Hoja4!$B$24,Hoja4!$B$25))))) -> ND | O10: 0 | P10: 0 | Q10: Triangular | R10: =IF((OR(SUM(Tabla12[Costo Esperado])>0,SUM(Tabla2[Costo Esperado])>0,SUM(Tabla25[Costo Esperado])>0,SUM(Tabla24[Costo Esperado])>0,SUM(Tabla246[Costo Esperado])>0,SUM(Tabla2467[Costo Esperado])>0,SUM(Tabla248[Costo Esperado])>0,SUM(Tabla249[Costo Esperado])>0,SUM(Tabla24910[Costo Esperado])>0)),"ELIMINAR",IF(P10>0,[4]!RiskTriang(P10*0.75,P10,P10*1.25),"ELIMINAR")) -> ELIMINAR
A11: 6 | L11: 0 | M11: =IF(L11=0,"ND",IF(L11>=Hoja4!$C$21,Hoja4!$B$21,IF(L11>=Hoja4!$C$22,Hoja4!$B$22,IF(MGR!L11>=Hoja4!$C$23,Hoja4!$B$23,IF(MGR!L11>=Hoja4!$C$24,Hoja4!$B$24,Hoja4!$B$25))))) -> ND | O11: 0 | P11: 0 | Q11: Triangular | R11: =IF((OR(SUM(Tabla12[Costo Esperado])>0,SUM(Tabla2[Costo Esperado])>0,SUM(Tabla25[Costo Esperado])>0,SUM(Tabla24[Costo Esperado])>0,SUM(Tabla246[Costo Esperado])>0,SUM(Tabla2467[Costo Esperado])>0,SUM(Tabla248[Costo Esperado])>0,SUM(Tabla249[Costo Esperado])>0,SUM(Tabla24910[Costo Esperado])>0)),"ELIMINAR",IF(P11>0,[4]!RiskTriang(P11*0.75,P11,P11*1.25),"ELIMINAR")) -> ELIMINAR
A12: 7 | L12: 0 | M12: =IF(L12=0,"ND",IF(L12>=Hoja4!$C$21,Hoja4!$B$21,IF(L12>=Hoja4!$C$22,Hoja4!$B$22,IF(MGR!L12>=Hoja4!$C$23,Hoja4!$B$23,IF(MGR!L12>=Hoja4!$C$24,Hoja4!$B$24,Hoja4!$B$25))))) -> ND | O12: 0 | P12: 0 | Q12: Triangular | R12: =IF((OR(SUM(Tabla12[Costo Esperado])>0,SUM(Tabla2[Costo Esperado])>0,SUM(Tabla25[Costo Esperado])>0,SUM(Tabla24[Costo Esperado])>0,SUM(Tabla246[Costo Esperado])>0,SUM(Tabla2467[Costo Esperado])>0,SUM(Tabla248[Costo Esperado])>0,SUM(Tabla249[Costo Esperado])>0,SUM(Tabla24910[Costo Esperado])>0)),"ELIMINAR",IF(P12>0,[4]!RiskTriang(P12*0.75,P12,P12*1.25),"ELIMINAR")) -> ELIMINAR
A13: 8 | L13: 0 | M13: =IF(L13=0,"ND",IF(L13>=Hoja4!$C$21,Hoja4!$B$21,IF(L13>=Hoja4!$C$22,Hoja4!$B$22,IF(MGR!L13>=Hoja4!$C$23,Hoja4!$B$23,IF(MGR!L13>=Hoja4!$C$24,Hoja4!$B$24,Hoja4!$B$25))))) -> ND | O13: 0 | P13: 0 | Q13: Triangular | R13: =IF((OR(SUM(Tabla12[Costo Esperado])>0,SUM(Tabla2[Costo Esperado])>0,SUM(Tabla25[Costo Esperado])>0,SUM(Tabla24[Costo Esperado])>0,SUM(Tabla246[Costo Esperado])>0,SUM(Tabla2467[Costo Esperado])>0,SUM(Tabla248[Costo Esperado])>0,SUM(Tabla249[Costo Esperado])>0,SUM(Tabla24910[Costo Esperado])>0)),"ELIMINAR",IF(P13>0,[4]!RiskTriang(P13*0.75,P13,P13*1.25),"ELIMINAR")) -> ELIMINAR
A14: 9 | L14: 0 | M14: =IF(L14=0,"ND",IF(L14>=Hoja4!$C$21,Hoja4!$B$21,IF(L14>=Hoja4!$C$22,Hoja4!$B$22,IF(MGR!L14>=Hoja4!$C$23,Hoja4!$B$23,IF(MGR!L14>=Hoja4!$C$24,Hoja4!$B$24,Hoja4!$B$25))))) -> ND | O14: 0 | P14: 0 | Q14: Triangular | R14: =IF((OR(SUM(Tabla12[Costo Esperado])>0,SUM(Tabla2[Costo Esperado])>0,SUM(Tabla25[Costo Esperado])>0,SUM(Tabla24[Costo Esperado])>0,SUM(Tabla246[Costo Esperado])>0,SUM(Tabla2467[Costo Esperado])>0,SUM(Tabla248[Costo Esperado])>0,SUM(Tabla249[Costo Esperado])>0,SUM(Tabla24910[Costo Esperado])>0)),"ELIMINAR",IF(P14>0,[4]!RiskTriang(P14*0.75,P14,P14*1.25),"ELIMINAR")) -> ELIMINAR
A15: 10 | L15: 0 | M15: =IF(L15=0,"ND",IF(L15>=Hoja4!$C$21,Hoja4!$B$21,IF(L15>=Hoja4!$C$22,Hoja4!$B$22,IF(MGR!L15>=Hoja4!$C$23,Hoja4!$B$23,IF(MGR!L15>=Hoja4!$C$24,Hoja4!$B$24,Hoja4!$B$25))))) -> ND | O15: 0 | P15: 0 | Q15: Triangular | R15: =IF((OR(SUM(Tabla12[Costo Esperado])>0,SUM(Tabla2[Costo Esperado])>0,SUM(Tabla25[Costo Esperado])>0,SUM(Tabla24[Costo Esperado])>0,SUM(Tabla246[Costo Esperado])>0,SUM(Tabla2467[Costo Esperado])>0,SUM(Tabla248[Costo Esperado])>0,SUM(Tabla249[Costo Esperado])>0,SUM(Tabla24910[Costo Esperado])>0)),"ELIMINAR",IF(P15>0,[4]!RiskTriang(P15*0.75,P15,P15*1.25),"ELIMINAR")) -> ELIMINAR
A16: 11 | L16: 0 | M16: =IF(L16=0,"ND",IF(L16>=Hoja4!$C$21,Hoja4!$B$21,IF(L16>=Hoja4!$C$22,Hoja4!$B$22,IF(MGR!L16>=Hoja4!$C$23,Hoja4!$B$23,IF(MGR!L16>=Hoja4!$C$24,Hoja4!$B$24,Hoja4!$B$25))))) -> ND | O16: 0 | P16: 0 | Q16: Triangular | R16: =IF((OR(SUM(Tabla12[Costo Esperado])>0,SUM(Tabla2[Costo Esperado])>0,SUM(Tabla25[Costo Esperado])>0,SUM(Tabla24[Costo Esperado])>0,SUM(Tabla246[Costo Esperado])>0,SUM(Tabla2467[Costo Esperado])>0,SUM(Tabla248[Costo Esperado])>0,SUM(Tabla249[Costo Esperado])>0,SUM(Tabla24910[Costo Esperado])>0)),"ELIMINAR",IF(P16>0,[4]!RiskTriang(P16*0.75,P16,P16*1.25),"ELIMINAR")) -> ELIMINAR
A17: 12 | L17: 0 | M17: =IF(L17=0,"ND",IF(L17>=Hoja4!$C$21,Hoja4!$B$21,IF(L17>=Hoja4!$C$22,Hoja4!$B$22,IF(MGR!L17>=Hoja4!$C$23,Hoja4!$B$23,IF(MGR!L17>=Hoja4!$C$24,Hoja4!$B$24,Hoja4!$B$25))))) -> ND | O17: 0 | P17: 0 | Q17: Triangular | R17: =IF((OR(SUM(Tabla12[Costo Esperado])>0,SUM(Tabla2[Costo Esperado])>0,SUM(Tabla25[Costo Esperado])>0,SUM(Tabla24[Costo Esperado])>0,SUM(Tabla246[Costo Esperado])>0,SUM(Tabla2467[Costo Esperado])>0,SUM(Tabla248[Costo Esperado])>0,SUM(Tabla249[Costo Esperado])>0,SUM(Tabla24910[Costo Esperado])>0)),"ELIMINAR",IF(P17>0,[4]!RiskTriang(P17*0.75,P17,P17*1.25),"ELIMINAR")) -> ELIMINAR
A18: 13 | L18: 0 | M18: =IF(L18=0,"ND",IF(L18>=Hoja4!$C$21,Hoja4!$B$21,IF(L18>=Hoja4!$C$22,Hoja4!$B$22,IF(MGR!L18>=Hoja4!$C$23,Hoja4!$B$23,IF(MGR!L18>=Hoja4!$C$24,Hoja4!$B$24,Hoja4!$B$25))))) -> ND | O18: 0 | P18: 0 | Q18: Triangular | R18: =IF((OR(SUM(Tabla12[Costo Esperado])>0,SUM(Tabla2[Costo Esperado])>0,SUM(Tabla25[Costo Esperado])>0,SUM(Tabla24[Costo Esperado])>0,SUM(Tabla246[Costo Esperado])>0,SUM(Tabla2467[Costo Esperado])>0,SUM(Tabla248[Costo Esperado])>0,SUM(Tabla249[Costo Esperado])>0,SUM(Tabla24910[Costo Esperado])>0)),"ELIMINAR",IF(P18>0,[4]!RiskTriang(P18*0.75,P18,P18*1.25),"ELIMINAR")) -> ELIMINAR
A19: 14 | L19: 0 | M19: =IF(L19=0,"ND",IF(L19>=Hoja4!$C$21,Hoja4!$B$21,IF(L19>=Hoja4!$C$22,Hoja4!$B$22,IF(MGR!L19>=Hoja4!$C$23,Hoja4!$B$23,IF(MGR!L19>=Hoja4!$C$24,Hoja4!$B$24,Hoja4!$B$25))))) -> ND | O19: 0 | P19: 0 | Q19: Triangular | R19: =IF((OR(SUM(Tabla12[Costo Esperado])>0,SUM(Tabla2[Costo Esperado])>0,SUM(Tabla25[Costo Esperado])>0,SUM(Tabla24[Costo Esperado])>0,SUM(Tabla246[Costo Esperado])>0,SUM(Tabla2467[Costo Esperado])>0,SUM(Tabla248[Costo Esperado])>0,SUM(Tabla249[Costo Esperado])>0,SUM(Tabla24910[Costo Esperado])>0)),"ELIMINAR",IF(P19>0,[4]!RiskTriang(P19*0.75,P19,P19*1.25),"ELIMINAR")) -> ELIMINAR
A20: 15 | L20: 0 | M20: =IF(L20=0,"ND",IF(L20>=Hoja4!$C$21,Hoja4!$B$21,IF(L20>=Hoja4!$C$22,Hoja4!$B$22,IF(MGR!L20>=Hoja4!$C$23,Hoja4!$B$23,IF(MGR!L20>=Hoja4!$C$24,Hoja4!$B$24,Hoja4!$B$25))))) -> ND | O20: 0 | P20: 0 | Q20: Triangular | R20: =IF((OR(SUM(Tabla12[Costo Esperado])>0,SUM(Tabla2[Costo Esperado])>0,SUM(Tabla25[Costo Esperado])>0,SUM(Tabla24[Costo Esperado])>0,SUM(Tabla246[Costo Esperado])>0,SUM(Tabla2467[Costo Esperado])>0,SUM(Tabla248[Costo Esperado])>0,SUM(Tabla249[Costo Esperado])>0,SUM(Tabla24910[Costo Esperado])>0)),"ELIMINAR",IF(P20>0,[4]!RiskTriang(P20*0.75,P20,P20*1.25),"ELIMINAR")) -> ELIMINAR
A21: 16 | L21: 0 | M21: =IF(L21=0,"ND",IF(L21>=Hoja4!$C$21,Hoja4!$B$21,IF(L21>=Hoja4!$C$22,Hoja4!$B$22,IF(MGR!L21>=Hoja4!$C$23,Hoja4!$B$23,IF(MGR!L21>=Hoja4!$C$24,Hoja4!$B$24,Hoja4!$B$25))))) -> ND | O21: 0 | P21: 0 | Q21: Triangular | R21: =IF((OR(SUM(Tabla12[Costo Esperado])>0,SUM(Tabla2[Costo Esperado])>0,SUM(Tabla25[Costo Esperado])>0,SUM(Tabla24[Costo Esperado])>0,SUM(Tabla246[Costo Esperado])>0,SUM(Tabla2467[Costo Esperado])>0,SUM(Tabla248[Costo Esperado])>0,SUM(Tabla249[Costo Esperado])>0,SUM(Tabla24910[Costo Esperado])>0)),"ELIMINAR",IF(P21>0,[4]!RiskTriang(P21*0.75,P21,P21*1.25),"ELIMINAR")) -> ELIMINAR
A22: 17 | L22: 0 | M22: =IF(L22=0,"ND",IF(L22>=Hoja4!$C$21,Hoja4!$B$21,IF(L22>=Hoja4!$C$22,Hoja4!$B$22,IF(MGR!L22>=Hoja4!$C$23,Hoja4!$B$23,IF(MGR!L22>=Hoja4!$C$24,Hoja4!$B$24,Hoja4!$B$25))))) -> ND | O22: 0 | P22: 0 | Q22: Triangular | R22: =IF((OR(SUM(Tabla12[Costo Esperado])>0,SUM(Tabla2[Costo Esperado])>0,SUM(Tabla25[Costo Esperado])>0,SUM(Tabla24[Costo Esperado])>0,SUM(Tabla246[Costo Esperado])>0,SUM(Tabla2467[Costo Esperado])>0,SUM(Tabla248[Costo Esperado])>0,SUM(Tabla249[Costo Esperado])>0,SUM(Tabla24910[Costo Esperado])>0)),"ELIMINAR",IF(P22>0,[4]!RiskTriang(P22*0.75,P22,P22*1.25),"ELIMINAR")) -> ELIMINAR
A23: 18 | L23: 0 | M23: =IF(L23=0,"ND",IF(L23>=Hoja4!$C$21,Hoja4!$B$21,IF(L23>=Hoja4!$C$22,Hoja4!$B$22,IF(MGR!L23>=Hoja4!$C$23,Hoja4!$B$23,IF(MGR!L23>=Hoja4!$C$24,Hoja4!$B$24,Hoja4!$B$25))))) -> ND | O23: 0 | P23: 0 | Q23: Triangular | R23: =IF((OR(SUM(Tabla12[Costo Esperado])>0,SUM(Tabla2[Costo Esperado])>0,SUM(Tabla25[Costo Esperado])>0,SUM(Tabla24[Costo Esperado])>0,SUM(Tabla246[Costo Esperado])>0,SUM(Tabla2467[Costo Esperado])>0,SUM(Tabla248[Costo Esperado])>0,SUM(Tabla249[Costo Esperado])>0,SUM(Tabla24910[Costo Esperado])>0)),"ELIMINAR",IF(P23>0,[4]!RiskTriang(P23*0.75,P23,P23*1.25),"ELIMINAR")) -> ELIMINAR
A24: 19 | L24: 0 | M24: =IF(L24=0,"ND",IF(L24>=Hoja4!$C$21,Hoja4!$B$21,IF(L24>=Hoja4!$C$22,Hoja4!$B$22,IF(MGR!L24>=Hoja4!$C$23,Hoja4!$B$23,IF(MGR!L24>=Hoja4!$C$24,Hoja4!$B$24,Hoja4!$B$25))))) -> ND | O24: 0 | P24: 0 | Q24: Triangular | R24: =IF((OR(SUM(Tabla12[Costo Esperado])>0,SUM(Tabla2[Costo Esperado])>0,SUM(Tabla25[Costo Esperado])>0,SUM(Tabla24[Costo Esperado])>0,SUM(Tabla246[Costo Esperado])>0,SUM(Tabla2467[Costo Esperado])>0,SUM(Tabla248[Costo Esperado])>0,SUM(Tabla249[Costo Esperado])>0,SUM(Tabla24910[Costo Esperado])>0)),"ELIMINAR",IF(P24>0,[4]!RiskTriang(P24*0.75,P24,P24*1.25),"ELIMINAR")) -> ELIMINAR
A25: 20 | L25: 0 | M25: =IF(L25=0,"ND",IF(L25>=Hoja4!$C$21,Hoja4!$B$21,IF(L25>=Hoja4!$C$22,Hoja4!$B$22,IF(MGR!L25>=Hoja4!$C$23,Hoja4!$B$23,IF(MGR!L25>=Hoja4!$C$24,Hoja4!$B$24,Hoja4!$B$25))))) -> ND | O25: 0 | P25: 0 | Q25: Triangular | R25: =IF((OR(SUM(Tabla12[Costo Esperado])>0,SUM(Tabla2[Costo Esperado])>0,SUM(Tabla25[Costo Esperado])>0,SUM(Tabla24[Costo Esperado])>0,SUM(Tabla246[Costo Esperado])>0,SUM(Tabla2467[Costo Esperado])>0,SUM(Tabla248[Costo Esperado])>0,SUM(Tabla249[Costo Esperado])>0,SUM(Tabla24910[Costo Esperado])>0)),"ELIMINAR",IF(P25>0,[4]!RiskTriang(P25*0.75,P25,P25*1.25),"ELIMINAR")) -> ELIMINAR
A26: 21 | L26: 0 | M26: =IF(L26=0,"ND",IF(L26>=Hoja4!$C$21,Hoja4!$B$21,IF(L26>=Hoja4!$C$22,Hoja4!$B$22,IF(MGR!L26>=Hoja4!$C$23,Hoja4!$B$23,IF(MGR!L26>=Hoja4!$C$24,Hoja4!$B$24,Hoja4!$B$25))))) -> ND | O26: 0 | P26: 0 | Q26: Triangular | R26: =IF((OR(SUM(Tabla12[Costo Esperado])>0,SUM(Tabla2[Costo Esperado])>0,SUM(Tabla25[Costo Esperado])>0,SUM(Tabla24[Costo Esperado])>0,SUM(Tabla246[Costo Esperado])>0,SUM(Tabla2467[Costo Esperado])>0,SUM(Tabla248[Costo Esperado])>0,SUM(Tabla249[Costo Esperado])>0,SUM(Tabla24910[Costo Esperado])>0)),"ELIMINAR",IF(P26>0,[4]!RiskTriang(P26*0.75,P26,P26*1.25),"ELIMINAR")) -> ELIMINAR
A27: 22 | L27: 0 | M27: =IF(L27=0,"ND",IF(L27>=Hoja4!$C$21,Hoja4!$B$21,IF(L27>=Hoja4!$C$22,Hoja4!$B$22,IF(MGR!L27>=Hoja4!$C$23,Hoja4!$B$23,IF(MGR!L27>=Hoja4!$C$24,Hoja4!$B$24,Hoja4!$B$25))))) -> ND | O27: 0 | P27: 0 | Q27: Triangular | R27: =IF((OR(SUM(Tabla12[Costo Esperado])>0,SUM(Tabla2[Costo Esperado])>0,SUM(Tabla25[Costo Esperado])>0,SUM(Tabla24[Costo Esperado])>0,SUM(Tabla246[Costo Esperado])>0,SUM(Tabla2467[Costo Esperado])>0,SUM(Tabla248[Costo Esperado])>0,SUM(Tabla249[Costo Esperado])>0,SUM(Tabla24910[Costo Esperado])>0)),"ELIMINAR",IF(P27>0,[4]!RiskTriang(P27*0.75,P27,P27*1.25),"ELIMINAR")) -> ELIMINAR
A28: 23 | L28: 0 | M28: =IF(L28=0,"ND",IF(L28>=Hoja4!$C$21,Hoja4!$B$21,IF(L28>=Hoja4!$C$22,Hoja4!$B$22,IF(MGR!L28>=Hoja4!$C$23,Hoja4!$B$23,IF(MGR!L28>=Hoja4!$C$24,Hoja4!$B$24,Hoja4!$B$25))))) -> ND | O28: 0 | P28: 0 | Q28: Triangular | R28: =IF((OR(SUM(Tabla12[Costo Esperado])>0,SUM(Tabla2[Costo Esperado])>0,SUM(Tabla25[Costo Esperado])>0,SUM(Tabla24[Costo Esperado])>0,SUM(Tabla246[Costo Esperado])>0,SUM(Tabla2467[Costo Esperado])>0,SUM(Tabla248[Costo Esperado])>0,SUM(Tabla249[Costo Esperado])>0,SUM(Tabla24910[Costo Esperado])>0)),"ELIMINAR",IF(P28>0,[4]!RiskTriang(P28*0.75,P28,P28*1.25),"ELIMINAR")) -> ELIMINAR
A29: 24 | L29: 0 | M29: =IF(L29=0,"ND",IF(L29>=Hoja4!$C$21,Hoja4!$B$21,IF(L29>=Hoja4!$C$22,Hoja4!$B$22,IF(MGR!L29>=Hoja4!$C$23,Hoja4!$B$23,IF(MGR!L29>=Hoja4!$C$24,Hoja4!$B$24,Hoja4!$B$25))))) -> ND | O29: 0 | P29: 0 | Q29: Triangular | R29: =IF((OR(SUM(Tabla12[Costo Esperado])>0,SUM(Tabla2[Costo Esperado])>0,SUM(Tabla25[Costo Esperado])>0,SUM(Tabla24[Costo Esperado])>0,SUM(Tabla246[Costo Esperado])>0,SUM(Tabla2467[Costo Esperado])>0,SUM(Tabla248[Costo Esperado])>0,SUM(Tabla249[Costo Esperado])>0,SUM(Tabla24910[Costo Esperado])>0)),"ELIMINAR",IF(P29>0,[4]!RiskTriang(P29*0.75,P29,P29*1.25),"ELIMINAR")) -> ELIMINAR
A30: 25 | L30: 0 | M30: =IF(L30=0,"ND",IF(L30>=Hoja4!$C$21,Hoja4!$B$21,IF(L30>=Hoja4!$C$22,Hoja4!$B$22,IF(MGR!L30>=Hoja4!$C$23,Hoja4!$B$23,IF(MGR!L30>=Hoja4!$C$24,Hoja4!$B$24,Hoja4!$B$25))))) -> ND | O30: 0 | P30: 0 | Q30: Triangular | R30: =IF((OR(SUM(Tabla12[Costo Esperado])>0,SUM(Tabla2[Costo Esperado])>0,SUM(Tabla25[Costo Esperado])>0,SUM(Tabla24[Costo Esperado])>0,SUM(Tabla246[Costo Esperado])>0,SUM(Tabla2467[Costo Esperado])>0,SUM(Tabla248[Costo Esperado])>0,SUM(Tabla249[Costo Esperado])>0,SUM(Tabla24910[Costo Esperado])>0)),"ELIMINAR",IF(P30>0,[4]!RiskTriang(P30*0.75,P30,P30*1.25),"ELIMINAR")) -> ELIMINAR
R31: =SUM(R6:R30) -> 0

Sheet Resultados (hidden)
C1: =IF(MGR!C1="","INLCUIR NOMBRE EN MGR",MGR!C1) -> INLCUIR NOMBRE EN MGR
C2: Calculo de Costo Esperado Total
C3: Variable | D3: Valores
C4: Costo Total Esperado Total antes de la Simulación | D4: =IF((OR(SUM(Tabla2[Costo Esperado])>0,SUM(Tabla12[Costo Esperado])>0,SUM(Tabla25[Costo Esperado])>0,SUM(Tabla24[Costo Esperado])>0,SUM(Tabla246[Costo Esperado])>0,SUM(Tabla2467[Costo Esperado])>0,SUM(Tabla248[Costo Esperado])>0,SUM(Tabla249[Costo Esperado])>0,SUM(Tabla24910[Costo Esperado])>0)),SUM(Tabla2[Costo Esperado])+SUM(Tabla12[Costo Esperado])+SUM(Tabla25[Costo Esperado])+SUM(Tabla24[Costo Esperado])+SUM(Tabla246[Costo Esperado])+SUM(Tabla2467[Costo Esperado])+SUM(Tabla248[Costo Esperado])+SUM(Tabla249[Costo Esperado])+SUM(Tabla24910[Costo Esperado]),SUM(SumaCostoEsperado)/2) -> 0
C5: Costo Total Esperado Total después de la simulación
C6: Valor Mínimo del Costo Total Esperado Simulado
C7: Valor Máximo del Costo Total Esperado Simulado
G15: Riesgos Totales | H15: =SUM(Tabla11[Cantidad]) -> 0
G19: Cantidad de Eventos Riesgos según Categoría
G20: Categoría | H20: Cantidad
G21: Muy alto | H21: =COUNTIF(clasificacion,Hoja4!$B21) -> 0
G22: Alto | H22: =COUNTIF(clasificacion,Hoja4!$B22) -> 0
G23: Medio | H23: =COUNTIF(clasificacion,Hoja4!$B23) -> 0
G24: Bajo | H24: =COUNTIF(clasificacion,Hoja4!$B24) -> 0
G25: Muy bajo | H25: =COUNTIF(clasificacion,Hoja4!$B25) -> 0

Sheet D.Beta (hidden)
A1: Riesgo | B1: Costo afectado | C1: Alpha | D1: Beta | E1: Mínimo | F1: Máximo | G1: Costo Esperado
G2: =IF(Tabla12[[#This Row],[Costo afectado]]>0,[4]!RiskBeta(Tabla12[[#This Row],[Alpha]],Tabla12[[#This Row],[Beta]],Tabla12[[#This Row],[Mínimo]],Tabla12[[#This Row],[Máximo]]),"ELIMINAR") -> ELIMINAR
G3: =IF(Tabla12[[#This Row],[Costo afectado]]>0,[4]!RiskBeta(Tabla12[[#This Row],[Alpha]],Tabla12[[#This Row],[Beta]],Tabla12[[#This Row],[Mínimo]],Tabla12[[#This Row],[Máximo]]),"ELIMINAR") -> ELIMINAR
G4: =IF(Tabla12[[#This Row],[Costo afectado]]>0,[4]!RiskBeta(Tabla12[[#This Row],[Alpha]],Tabla12[[#This Row],[Beta]],Tabla12[[#This Row],[Mínimo]],Tabla12[[#This Row],[Máximo]]),"ELIMINAR") -> ELIMINAR
G5: =IF(Tabla12[[#This Row],[Costo afectado]]>0,[4]!RiskBeta(Tabla12[[#This Row],[Alpha]],Tabla12[[#This Row],[Beta]],Tabla12[[#This Row],[Mínimo]],Tabla12[[#This Row],[Máximo]]),"ELIMINAR") -> ELIMINAR
G6: =IF(Tabla12[[#This Row],[Costo afectado]]>0,[4]!RiskBeta(Tabla12[[#This Row],[Alpha]],Tabla12[[#This Row],[Beta]],Tabla12[[#This Row],[Mínimo]],Tabla12[[#This Row],[Máximo]]),"ELIMINAR") -> ELIMINAR
G7: =IF(Tabla12[[#This Row],[Costo afectado]]>0,[4]!RiskBeta(Tabla12[[#This Row],[Alpha]],Tabla12[[#This Row],[Beta]],Tabla12[[#This Row],[Mínimo]],Tabla12[[#This Row],[Máximo]]),"ELIMINAR") -> ELIMINAR
G8: =IF(Tabla12[[#This Row],[Costo afectado]]>0,[4]!RiskBeta(Tabla12[[#This Row],[Alpha]],Tabla12[[#This Row],[Beta]],Tabla12[[#This Row],[Mínimo]],Tabla12[[#This Row],[Máximo]]),"ELIMINAR") -> ELIMINAR
G9: =IF(Tabla12[[#This Row],[Costo afectado]]>0,[4]!RiskBeta(Tabla12[[#This Row],[Alpha]],Tabla12[[#This Row],[Beta]],Tabla12[[#This Row],[Mínimo]],Tabla12[[#This Row],[Máximo]]),"ELIMINAR") -> ELIMINAR
G10: =IF(Tabla12[[#This Row],[Costo afectado]]>0,[4]!RiskBeta(Tabla12[[#This Row],[Alpha]],Tabla12[[#This Row],[Beta]],Tabla12[[#This Row],[Mínimo]],Tabla12[[#This Row],[Máximo]]),"ELIMINAR") -> ELIMINAR
G11: =IF(Tabla12[[#This Row],[Costo afectado]]>0,[4]!RiskBeta(Tabla12[[#This Row],[Alpha]],Tabla12[[#This Row],[Beta]],Tabla12[[#This Row],[Mínimo]],Tabla12[[#This Row],[Máximo]]),"ELIMINAR") -> ELIMINAR
G12: =IF(Tabla12[[#This Row],[Costo afectado]]>0,[4]!RiskBeta(Tabla12[[#This Row],[Alpha]],Tabla12[[#This Row],[Beta]],Tabla12[[#This Row],[Mínimo]],Tabla12[[#This Row],[Máximo]]),"ELIMINAR") -> ELIMINAR
G13: =IF(Tabla12[[#This Row],[Costo afectado]]>0,[4]!RiskBeta(Tabla12[[#This Row],[Alpha]],Tabla12[[#This Row],[Beta]],Tabla12[[#This Row],[Mínimo]],Tabla12[[#This Row],[Máximo]]),"ELIMINAR") -> ELIMINAR
G14: =IF(Tabla12[[#This Row],[Costo afectado]]>0,[4]!RiskBeta(Tabla12[[#This Row],[Alpha]],Tabla12[[#This Row],[Beta]],Tabla12[[#This Row],[Mínimo]],Tabla12[[#This Row],[Máximo]]),"ELIMINAR") -> ELIMINAR
G15: =IF(Tabla12[[#This Row],[Costo afectado]]>0,[4]!RiskBeta(Tabla12[[#This Row],[Alpha]],Tabla12[[#This Row],[Beta]],Tabla12[[#This Row],[Mínimo]],Tabla12[[#This Row],[Máximo]]),"ELIMINAR") -> ELIMINAR
G16: =IF(Tabla12[[#This Row],[Costo afectado]]>0,[4]!RiskBeta(Tabla12[[#This Row],[Alpha]],Tabla12[[#This Row],[Beta]],Tabla12[[#This Row],[Mínimo]],Tabla12[[#This Row],[Máximo]]),"ELIMINAR") -> ELIMINAR
G17: =IF(Tabla12[[#This Row],[Costo afectado]]>0,[4]!RiskBeta(Tabla12[[#This Row],[Alpha]],Tabla12[[#This Row],[Beta]],Tabla12[[#This Row],[Mínimo]],Tabla12[[#This Row],[Máximo]]),"ELIMINAR") -> ELIMINAR
G18: =IF(Tabla12[[#This Row],[Costo afectado]]>0,[4]!RiskBeta(Tabla12[[#This Row],[Alpha]],Tabla12[[#This Row],[Beta]],Tabla12[[#This Row],[Mínimo]],Tabla12[[#This Row],[Máximo]]),"ELIMINAR") -> ELIMINAR
G19: =IF(Tabla12[[#This Row],[Costo afectado]]>0,[4]!RiskBeta(Tabla12[[#This Row],[Alpha]],Tabla12[[#This Row],[Beta]],Tabla12[[#This Row],[Mínimo]],Tabla12[[#This Row],[Máximo]]),"ELIMINAR") -> ELIMINAR
G20: =IF(Tabla12[[#This Row],[Costo afectado]]>0,[4]!RiskBeta(Tabla12[[#This Row],[Alpha]],Tabla12[[#This Row],[Beta]],Tabla12[[#This Row],[Mínimo]],Tabla12[[#This Row],[Máximo]]),"ELIMINAR") -> ELIMINAR
G21: =IF(Tabla12[[#This Row],[Costo afectado]]>0,[4]!RiskBeta(Tabla12[[#This Row],[Alpha]],Tabla12[[#This Row],[Beta]],Tabla12[[#This Row],[Mínimo]],Tabla12[[#This Row],[Máximo]]),"ELIMINAR") -> ELIMINAR

Sheet D.Normal (hidden)
A1: Riesgo | B1: Costo afectado | C1: Media | D1: Desviación estandar | E1: Costo Esperado
E2: =IF(Tabla2[[#This Row],[Costo afectado]]>0,[4]!RiskNormal(Tabla2[[#This Row],[Media]],Tabla2[[#This Row],[Desviación estandar]]),"ELIMINAR") -> ELIMINAR
E3: =IF(Tabla2[[#This Row],[Costo afectado]]>0,[4]!RiskNormal(Tabla2[[#This Row],[Media]],Tabla2[[#This Row],[Desviación estandar]]),"ELIMINAR") -> ELIMINAR
E4: =IF(Tabla2[[#This Row],[Costo afectado]]>0,[4]!RiskNormal(Tabla2[[#This Row],[Media]],Tabla2[[#This Row],[Desviación estandar]]),"ELIMINAR") -> ELIMINAR
E5: =IF(Tabla2[[#This Row],[Costo afectado]]>0,[4]!RiskNormal(Tabla2[[#This Row],[Media]],Tabla2[[#This Row],[Desviación estandar]]),"ELIMINAR") -> ELIMINAR
E6: =IF(Tabla2[[#This Row],[Costo afectado]]>0,[4]!RiskNormal(Tabla2[[#This Row],[Media]],Tabla2[[#This Row],[Desviación estandar]]),"ELIMINAR") -> ELIMINAR
E7: =IF(Tabla2[[#This Row],[Costo afectado]]>0,[4]!RiskNormal(Tabla2[[#This Row],[Media]],Tabla2[[#This Row],[Desviación estandar]]),"ELIMINAR") -> ELIMINAR
E8: =IF(Tabla2[[#This Row],[Costo afectado]]>0,[4]!RiskNormal(Tabla2[[#This Row],[Media]],Tabla2[[#This Row],[Desviación estandar]]),"ELIMINAR") -> ELIMINAR
E9: =IF(Tabla2[[#This Row],[Costo afectado]]>0,[4]!RiskNormal(Tabla2[[#This Row],[Media]],Tabla2[[#This Row],[Desviación estandar]]),"ELIMINAR") -> ELIMINAR
E10: =IF(Tabla2[[#This Row],[Costo afectado]]>0,[4]!RiskNormal(Tabla2[[#This Row],[Media]],Tabla2[[#This Row],[Desviación estandar]]),"ELIMINAR") -> ELIMINAR
E11: =IF(Tabla2[[#This Row],[Costo afectado]]>0,[4]!RiskNormal(Tabla2[[#This Row],[Media]],Tabla2[[#This Row],[Desviación estandar]]),"ELIMINAR") -> ELIMINAR
E12: =IF(Tabla2[[#This Row],[Costo afectado]]>0,[4]!RiskNormal(Tabla2[[#This Row],[Media]],Tabla2[[#This Row],[Desviación estandar]]),"ELIMINAR") -> ELIMINAR
E13: =IF(Tabla2[[#This Row],[Costo afectado]]>0,[4]!RiskNormal(Tabla2[[#This Row],[Media]],Tabla2[[#This Row],[Desviación estandar]]),"ELIMINAR") -> ELIMINAR
E14: =IF(Tabla2[[#This Row],[Costo afectado]]>0,[4]!RiskNormal(Tabla2[[#This Row],[Media]],Tabla2[[#This Row],[Desviación estandar]]),"ELIMINAR") -> ELIMINAR
E15: =IF(Tabla2[[#This Row],[Costo afectado]]>0,[4]!RiskNormal(Tabla2[[#This Row],[Media]],Tabla2[[#This Row],[Desviación estandar]]),"ELIMINAR") -> ELIMINAR
E16: =IF(Tabla2[[#This Row],[Costo afectado]]>0,[4]!RiskNormal(Tabla2[[#This Row],[Media]],Tabla2[[#This Row],[Desviación estandar]]),"ELIMINAR") -> ELIMINAR
E17: =IF(Tabla2[[#This Row],[Costo afectado]]>0,[4]!RiskNormal(Tabla2[[#This Row],[Media]],Tabla2[[#This Row],[Desviación estandar]]),"ELIMINAR") -> ELIMINAR
E18: =IF(Tabla2[[#This Row],[Costo afectado]]>0,[4]!RiskNormal(Tabla2[[#This Row],[Media]],Tabla2[[#This Row],[Desviación estandar]]),"ELIMINAR") -> ELIMINAR
E19: =IF(Tabla2[[#This Row],[Costo afectado]]>0,[4]!RiskNormal(Tabla2[[#This Row],[Media]],Tabla2[[#This Row],[Desviación estandar]]),"ELIMINAR") -> ELIMINAR
E20: =IF(Tabla2[[#This Row],[Costo afectado]]>0,[4]!RiskNormal(Tabla2[[#This Row],[Media]],Tabla2[[#This Row],[Desviación estandar]]),"ELIMINAR") -> ELIMINAR
E21: =IF(Tabla2[[#This Row],[Costo afectado]]>0,[4]!RiskNormal(Tabla2[[#This Row],[Media]],Tabla2[[#This Row],[Desviación estandar]]),"ELIMINAR") -> ELIMINAR

Sheet D.LogNormal (hidden)
A1: Riesgo | B1: Costo afectado | C1: Media | D1: Desviación estandar | E1: Costo Esperado
E2: =IF(Tabla25[[#This Row],[Costo afectado]]>0,[4]!RiskLogNorm(Tabla25[[#This Row],[Media]],Tabla25[[#This Row],[Desviación estandar]]),"ELIMINAR") -> ELIMINAR
E3: =IF(Tabla25[[#This Row],[Costo afectado]]>0,[4]!RiskLogNorm(Tabla25[[#This Row],[Media]],Tabla25[[#This Row],[Desviación estandar]]),"ELIMINAR") -> ELIMINAR
E4: =IF(Tabla25[[#This Row],[Costo afectado]]>0,[4]!RiskLogNorm(Tabla25[[#This Row],[Media]],Tabla25[[#This Row],[Desviación estandar]]),"ELIMINAR") -> ELIMINAR
E5: =IF(Tabla25[[#This Row],[Costo afectado]]>0,[4]!RiskLogNorm(Tabla25[[#This Row],[Media]],Tabla25[[#This Row],[Desviación estandar]]),"ELIMINAR") -> ELIMINAR
E6: =IF(Tabla25[[#This Row],[Costo afectado]]>0,[4]!RiskLogNorm(Tabla25[[#This Row],[Media]],Tabla25[[#This Row],[Desviación estandar]]),"ELIMINAR") -> ELIMINAR
E7: =IF(Tabla25[[#This Row],[Costo afectado]]>0,[4]!RiskLogNorm(Tabla25[[#This Row],[Media]],Tabla25[[#This Row],[Desviación estandar]]),"ELIMINAR") -> ELIMINAR
E8: =IF(Tabla25[[#This Row],[Costo afectado]]>0,[4]!RiskLogNorm(Tabla25[[#This Row],[Media]],Tabla25[[#This Row],[Desviación estandar]]),"ELIMINAR") -> ELIMINAR
E9: =IF(Tabla25[[#This Row],[Costo afectado]]>0,[4]!RiskLogNorm(Tabla25[[#This Row],[Media]],Tabla25[[#This Row],[Desviación estandar]]),"ELIMINAR") -> ELIMINAR
E10: =IF(Tabla25[[#This Row],[Costo afectado]]>0,[4]!RiskLogNorm(Tabla25[[#This Row],[Media]],Tabla25[[#This Row],[Desviación estandar]]),"ELIMINAR") -> ELIMINAR
E11: =IF(Tabla25[[#This Row],[Costo afectado]]>0,[4]!RiskLogNorm(Tabla25[[#This Row],[Media]],Tabla25[[#This Row],[Desviación estandar]]),"ELIMINAR") -> ELIMINAR
E12: =IF(Tabla25[[#This Row],[Costo afectado]]>0,[4]!RiskLogNorm(Tabla25[[#This Row],[Media]],Tabla25[[#This Row],[Desviación estandar]]),"ELIMINAR") -> ELIMINAR
E13: =IF(Tabla25[[#This Row],[Costo afectado]]>0,[4]!RiskLogNorm(Tabla25[[#This Row],[Media]],Tabla25[[#This Row],[Desviación estandar]]),"ELIMINAR") -> ELIMINAR
E14: =IF(Tabla25[[#This Row],[Costo afectado]]>0,[4]!RiskLogNorm(Tabla25[[#This Row],[Media]],Tabla25[[#This Row],[Desviación estandar]]),"ELIMINAR") -> ELIMINAR
E15: =IF(Tabla25[[#This Row],[Costo afectado]]>0,[4]!RiskLogNorm(Tabla25[[#This Row],[Media]],Tabla25[[#This Row],[Desviación estandar]]),"ELIMINAR") -> ELIMINAR
E16: =IF(Tabla25[[#This Row],[Costo afectado]]>0,[4]!RiskLogNorm(Tabla25[[#This Row],[Media]],Tabla25[[#This Row],[Desviación estandar]]),"ELIMINAR") -> ELIMINAR
E17: =IF(Tabla25[[#This Row],[Costo afectado]]>0,[4]!RiskLogNorm(Tabla25[[#This Row],[Media]],Tabla25[[#This Row],[Desviación estandar]]),"ELIMINAR") -> ELIMINAR
E18: =IF(Tabla25[[#This Row],[Costo afectado]]>0,[4]!RiskLogNorm(Tabla25[[#This Row],[Media]],Tabla25[[#This Row],[Desviación estandar]]),"ELIMINAR") -> ELIMINAR
E19: =IF(Tabla25[[#This Row],[Costo afectado]]>0,[4]!RiskLogNorm(Tabla25[[#This Row],[Media]],Tabla25[[#This Row],[Desviación estandar]]),"ELIMINAR") -> ELIMINAR
E20: =IF(Tabla25[[#This Row],[Costo afectado]]>0,[4]!RiskLogNorm(Tabla25[[#This Row],[Media]],Tabla25[[#This Row],[Desviación estandar]]),"ELIMINAR") -> ELIMINAR
E21: =IF(Tabla25[[#This Row],[Costo afectado]]>0,[4]!RiskLogNorm(Tabla25[[#This Row],[Media]],Tabla25[[#This Row],[Desviación estandar]]),"ELIMINAR") -> ELIMINAR

Sheet D.Triangular (hidden)
A1: Riesgo | B1: Costo afectado | C1: Mínimo | D1: Moda | E1: Máximo | F1: Costo Esperado
F2: =IF(Tabla24[[#This Row],[Costo afectado]]>0,[4]!RiskTriang(Tabla24[[#This Row],[Mínimo]],Tabla24[[#This Row],[Moda]],Tabla24[[#This Row],[Máximo]]),"ELIMINAR") -> ELIMINAR
F3: =IF(Tabla24[[#This Row],[Costo afectado]]>0,[4]!RiskTriang(Tabla24[[#This Row],[Mínimo]],Tabla24[[#This Row],[Moda]],Tabla24[[#This Row],[Máximo]]),"ELIMINAR") -> ELIMINAR
F4: =IF(Tabla24[[#This Row],[Costo afectado]]>0,[4]!RiskTriang(Tabla24[[#This Row],[Mínimo]],Tabla24[[#This Row],[Moda]],Tabla24[[#This Row],[Máximo]]),"ELIMINAR") -> ELIMINAR
F5: =IF(Tabla24[[#This Row],[Costo afectado]]>0,[4]!RiskTriang(Tabla24[[#This Row],[Mínimo]],Tabla24[[#This Row],[Moda]],Tabla24[[#This Row],[Máximo]]),"ELIMINAR") -> ELIMINAR
F6: =IF(Tabla24[[#This Row],[Costo afectado]]>0,[4]!RiskTriang(Tabla24[[#This Row],[Mínimo]],Tabla24[[#This Row],[Moda]],Tabla24[[#This Row],[Máximo]]),"ELIMINAR") -> ELIMINAR
F7: =IF(Tabla24[[#This Row],[Costo afectado]]>0,[4]!RiskTriang(Tabla24[[#This Row],[Mínimo]],Tabla24[[#This Row],[Moda]],Tabla24[[#This Row],[Máximo]]),"ELIMINAR") -> ELIMINAR
F8: =IF(Tabla24[[#This Row],[Costo afectado]]>0,[4]!RiskTriang(Tabla24[[#This Row],[Mínimo]],Tabla24[[#This Row],[Moda]],Tabla24[[#This Row],[Máximo]]),"ELIMINAR") -> ELIMINAR
F9: =IF(Tabla24[[#This Row],[Costo afectado]]>0,[4]!RiskTriang(Tabla24[[#This Row],[Mínimo]],Tabla24[[#This Row],[Moda]],Tabla24[[#This Row],[Máximo]]),"ELIMINAR") -> ELIMINAR
F10: =IF(Tabla24[[#This Row],[Costo afectado]]>0,[4]!RiskTriang(Tabla24[[#This Row],[Mínimo]],Tabla24[[#This Row],[Moda]],Tabla24[[#This Row],[Máximo]]),"ELIMINAR") -> ELIMINAR
F11: =IF(Tabla24[[#This Row],[Costo afectado]]>0,[4]!RiskTriang(Tabla24[[#This Row],[Mínimo]],Tabla24[[#This Row],[Moda]],Tabla24[[#This Row],[Máximo]]),"ELIMINAR") -> ELIMINAR
F12: =IF(Tabla24[[#This Row],[Costo afectado]]>0,[4]!RiskTriang(Tabla24[[#This Row],[Mínimo]],Tabla24[[#This Row],[Moda]],Tabla24[[#This Row],[Máximo]]),"ELIMINAR") -> ELIMINAR
F13: =IF(Tabla24[[#This Row],[Costo afectado]]>0,[4]!RiskTriang(Tabla24[[#This Row],[Mínimo]],Tabla24[[#This Row],[Moda]],Tabla24[[#This Row],[Máximo]]),"ELIMINAR") -> ELIMINAR
F14: =IF(Tabla24[[#This Row],[Costo afectado]]>0,[4]!RiskTriang(Tabla24[[#This Row],[Mínimo]],Tabla24[[#This Row],[Moda]],Tabla24[[#This Row],[Máximo]]),"ELIMINAR") -> ELIMINAR
F15: =IF(Tabla24[[#This Row],[Costo afectado]]>0,[4]!RiskTriang(Tabla24[[#This Row],[Mínimo]],Tabla24[[#This Row],[Moda]],Tabla24[[#This Row],[Máximo]]),"ELIMINAR") -> ELIMINAR
F16: =IF(Tabla24[[#This Row],[Costo afectado]]>0,[4]!RiskTriang(Tabla24[[#This Row],[Mínimo]],Tabla24[[#This Row],[Moda]],Tabla24[[#This Row],[Máximo]]),"ELIMINAR") -> ELIMINAR
F17: =IF(Tabla24[[#This Row],[Costo afectado]]>0,[4]!RiskTriang(Tabla24[[#This Row],[Mínimo]],Tabla24[[#This Row],[Moda]],Tabla24[[#This Row],[Máximo]]),"ELIMINAR") -> ELIMINAR
F18: =IF(Tabla24[[#This Row],[Costo afectado]]>0,[4]!RiskTriang(Tabla24[[#This Row],[Mínimo]],Tabla24[[#This Row],[Moda]],Tabla24[[#This Row],[Máximo]]),"ELIMINAR") -> ELIMINAR
F19: =IF(Tabla24[[#This Row],[Costo afectado]]>0,[4]!RiskTriang(Tabla24[[#This Row],[Mínimo]],Tabla24[[#This Row],[Moda]],Tabla24[[#This Row],[Máximo]]),"ELIMINAR") -> ELIMINAR
F20: =IF(Tabla24[[#This Row],[Costo afectado]]>0,[4]!RiskTriang(Tabla24[[#This Row],[Mínimo]],Tabla24[[#This Row],[Moda]],Tabla24[[#This Row],[Máximo]]),"ELIMINAR") -> ELIMINAR
F21: =IF(Tabla24[[#This Row],[Costo afectado]]>0,[4]!RiskTriang(Tabla24[[#This Row],[Mínimo]],Tabla24[[#This Row],[Moda]],Tabla24[[#This Row],[Máximo]]),"ELIMINAR") -> ELIMINAR

Sheet D.Erlang (hidden)
A1: Riesgo | B1: Costo afectado | C1: Kappa | D1: Lambda | E1: Costo Esperado
E2: =IF(Tabla246[[#This Row],[Costo afectado]]>0,[4]!RiskErlang(Tabla246[[#This Row],[Kappa]],Tabla246[[#This Row],[Lambda]]),"ELIMINAR") -> ELIMINAR
E3: =IF(Tabla246[[#This Row],[Costo afectado]]>0,[4]!RiskErlang(Tabla246[[#This Row],[Kappa]],Tabla246[[#This Row],[Lambda]]),"ELIMINAR") -> ELIMINAR
E4: =IF(Tabla246[[#This Row],[Costo afectado]]>0,[4]!RiskErlang(Tabla246[[#This Row],[Kappa]],Tabla246[[#This Row],[Lambda]]),"ELIMINAR") -> ELIMINAR
E5: =IF(Tabla246[[#This Row],[Costo afectado]]>0,[4]!RiskErlang(Tabla246[[#This Row],[Kappa]],Tabla246[[#This Row],[Lambda]]),"ELIMINAR") -> ELIMINAR
E6: =IF(Tabla246[[#This Row],[Costo afectado]]>0,[4]!RiskErlang(Tabla246[[#This Row],[Kappa]],Tabla246[[#This Row],[Lambda]]),"ELIMINAR") -> ELIMINAR
E7: =IF(Tabla246[[#This Row],[Costo afectado]]>0,[4]!RiskErlang(Tabla246[[#This Row],[Kappa]],Tabla246[[#This Row],[Lambda]]),"ELIMINAR") -> ELIMINAR
E8: =IF(Tabla246[[#This Row],[Costo afectado]]>0,[4]!RiskErlang(Tabla246[[#This Row],[Kappa]],Tabla246[[#This Row],[Lambda]]),"ELIMINAR") -> ELIMINAR
E9: =IF(Tabla246[[#This Row],[Costo afectado]]>0,[4]!RiskErlang(Tabla246[[#This Row],[Kappa]],Tabla246[[#This Row],[Lambda]]),"ELIMINAR") -> ELIMINAR
E10: =IF(Tabla246[[#This Row],[Costo afectado]]>0,[4]!RiskErlang(Tabla246[[#This Row],[Kappa]],Tabla246[[#This Row],[Lambda]]),"ELIMINAR") -> ELIMINAR
E11: =IF(Tabla246[[#This Row],[Costo afectado]]>0,[4]!RiskErlang(Tabla246[[#This Row],[Kappa]],Tabla246[[#This Row],[Lambda]]),"ELIMINAR") -> ELIMINAR
E12: =IF(Tabla246[[#This Row],[Costo afectado]]>0,[4]!RiskErlang(Tabla246[[#This Row],[Kappa]],Tabla246[[#This Row],[Lambda]]),"ELIMINAR") -> ELIMINAR
E13: =IF(Tabla246[[#This Row],[Costo afectado]]>0,[4]!RiskErlang(Tabla246[[#This Row],[Kappa]],Tabla246[[#This Row],[Lambda]]),"ELIMINAR") -> ELIMINAR
E14: =IF(Tabla246[[#This Row],[Costo afectado]]>0,[4]!RiskErlang(Tabla246[[#This Row],[Kappa]],Tabla246[[#This Row],[Lambda]]),"ELIMINAR") -> ELIMINAR
E15: =IF(Tabla246[[#This Row],[Costo afectado]]>0,[4]!RiskErlang(Tabla246[[#This Row],[Kappa]],Tabla246[[#This Row],[Lambda]]),"ELIMINAR") -> ELIMINAR
E16: =IF(Tabla246[[#This Row],[Costo afectado]]>0,[4]!RiskErlang(Tabla246[[#This Row],[Kappa]],Tabla246[[#This Row],[Lambda]]),"ELIMINAR") -> ELIMINAR
E17: =IF(Tabla246[[#This Row],[Costo afectado]]>0,[4]!RiskErlang(Tabla246[[#This Row],[Kappa]],Tabla246[[#This Row],[Lambda]]),"ELIMINAR") -> ELIMINAR
E18: =IF(Tabla246[[#This Row],[Costo afectado]]>0,[4]!RiskErlang(Tabla246[[#This Row],[Kappa]],Tabla246[[#This Row],[Lambda]]),"ELIMINAR") -> ELIMINAR
E19: =IF(Tabla246[[#This Row],[Costo afectado]]>0,[4]!RiskErlang(Tabla246[[#This Row],[Kappa]],Tabla246[[#This Row],[Lambda]]),"ELIMINAR") -> ELIMINAR
E20: =IF(Tabla246[[#This Row],[Costo afectado]]>0,[4]!RiskErlang(Tabla246[[#This Row],[Kappa]],Tabla246[[#This Row],[Lambda]]),"ELIMINAR") -> ELIMINAR
E21: =IF(Tabla246[[#This Row],[Costo afectado]]>0,[4]!RiskErlang(Tabla246[[#This Row],[Kappa]],Tabla246[[#This Row],[Lambda]]),"ELIMINAR") -> ELIMINAR

Sheet D.Exponencial (hidden)
A1: Riesgo | B1: Costo afectado | C1: Media | D1: Costo Esperado
D2: =IF(Tabla2467[[#This Row],[Costo afectado]]>0,[4]!RiskExpon(Tabla2467[[#This Row],[Media]]),"ELIMINAR") -> ELIMINAR
D3: =IF(Tabla2467[[#This Row],[Costo afectado]]>0,[4]!RiskExpon(Tabla2467[[#This Row],[Media]]),"ELIMINAR") -> ELIMINAR
D4: =IF(Tabla2467[[#This Row],[Costo afectado]]>0,[4]!RiskExpon(Tabla2467[[#This Row],[Media]]),"ELIMINAR") -> ELIMINAR
D5: =IF(Tabla2467[[#This Row],[Costo afectado]]>0,[4]!RiskExpon(Tabla2467[[#This Row],[Media]]),"ELIMINAR") -> ELIMINAR
D6: =IF(Tabla2467[[#This Row],[Costo afectado]]>0,[4]!RiskExpon(Tabla2467[[#This Row],[Media]]),"ELIMINAR") -> ELIMINAR
D7: =IF(Tabla2467[[#This Row],[Costo afectado]]>0,[4]!RiskExpon(Tabla2467[[#This Row],[Media]]),"ELIMINAR") -> ELIMINAR
D8: =IF(Tabla2467[[#This Row],[Costo afectado]]>0,[4]!RiskExpon(Tabla2467[[#This Row],[Media]]),"ELIMINAR") -> ELIMINAR
D9: =IF(Tabla2467[[#This Row],[Costo afectado]]>0,[4]!RiskExpon(Tabla2467[[#This Row],[Media]]),"ELIMINAR") -> ELIMINAR
D10: =IF(Tabla2467[[#This Row],[Costo afectado]]>0,[4]!RiskExpon(Tabla2467[[#This Row],[Media]]),"ELIMINAR") -> ELIMINAR
D11: =IF(Tabla2467[[#This Row],[Costo afectado]]>0,[4]!RiskExpon(Tabla2467[[#This Row],[Media]]),"ELIMINAR") -> ELIMINAR
D12: =IF(Tabla2467[[#This Row],[Costo afectado]]>0,[4]!RiskExpon(Tabla2467[[#This Row],[Media]]),"ELIMINAR") -> ELIMINAR
D13: =IF(Tabla2467[[#This Row],[Costo afectado]]>0,[4]!RiskExpon(Tabla2467[[#This Row],[Media]]),"ELIMINAR") -> ELIMINAR
D14: =IF(Tabla2467[[#This Row],[Costo afectado]]>0,[4]!RiskExpon(Tabla2467[[#This Row],[Media]]),"ELIMINAR") -> ELIMINAR
D15: =IF(Tabla2467[[#This Row],[Costo afectado]]>0,[4]!RiskExpon(Tabla2467[[#This Row],[Media]]),"ELIMINAR") -> ELIMINAR
D16: =IF(Tabla2467[[#This Row],[Costo afectado]]>0,[4]!RiskExpon(Tabla2467[[#This Row],[Media]]),"ELIMINAR") -> ELIMINAR
D17: =IF(Tabla2467[[#This Row],[Costo afectado]]>0,[4]!RiskExpon(Tabla2467[[#This Row],[Media]]),"ELIMINAR") -> ELIMINAR
D18: =IF(Tabla2467[[#This Row],[Costo afectado]]>0,[4]!RiskExpon(Tabla2467[[#This Row],[Media]]),"ELIMINAR") -> ELIMINAR
D19: =IF(Tabla2467[[#This Row],[Costo afectado]]>0,[4]!RiskExpon(Tabla2467[[#This Row],[Media]]),"ELIMINAR") -> ELIMINAR
D20: =IF(Tabla2467[[#This Row],[Costo afectado]]>0,[4]!RiskExpon(Tabla2467[[#This Row],[Media]]),"ELIMINAR") -> ELIMINAR
D21: =IF(Tabla2467[[#This Row],[Costo afectado]]>0,[4]!RiskExpon(Tabla2467[[#This Row],[Media]]),"ELIMINAR") -> ELIMINAR

Sheet D.Gamma (hidden)
A1: Riesgo | B1: Costo afectado | C1: Alpha | D1: Beta | E1: Costo Esperado
E2: =IF(Tabla248[[#This Row],[Costo afectado]]>0,[4]!RiskGamma(Tabla248[[#This Row],[Alpha]],Tabla248[[#This Row],[Beta]]),"ELIMINAR") -> ELIMINAR
E3: =IF(Tabla248[[#This Row],[Costo afectado]]>0,[4]!RiskGamma(Tabla248[[#This Row],[Alpha]],Tabla248[[#This Row],[Beta]]),"ELIMINAR") -> ELIMINAR
E4: =IF(Tabla248[[#This Row],[Costo afectado]]>0,[4]!RiskGamma(Tabla248[[#This Row],[Alpha]],Tabla248[[#This Row],[Beta]]),"ELIMINAR") -> ELIMINAR
E5: =IF(Tabla248[[#This Row],[Costo afectado]]>0,[4]!RiskGamma(Tabla248[[#This Row],[Alpha]],Tabla248[[#This Row],[Beta]]),"ELIMINAR") -> ELIMINAR
E6: =IF(Tabla248[[#This Row],[Costo afectado]]>0,[4]!RiskGamma(Tabla248[[#This Row],[Alpha]],Tabla248[[#This Row],[Beta]]),"ELIMINAR") -> ELIMINAR
E7: =IF(Tabla248[[#This Row],[Costo afectado]]>0,[4]!RiskGamma(Tabla248[[#This Row],[Alpha]],Tabla248[[#This Row],[Beta]]),"ELIMINAR") -> ELIMINAR
E8: =IF(Tabla248[[#This Row],[Costo afectado]]>0,[4]!RiskGamma(Tabla248[[#This Row],[Alpha]],Tabla248[[#This Row],[Beta]]),"ELIMINAR") -> ELIMINAR
E9: =IF(Tabla248[[#This Row],[Costo afectado]]>0,[4]!RiskGamma(Tabla248[[#This Row],[Alpha]],Tabla248[[#This Row],[Beta]]),"ELIMINAR") -> ELIMINAR
E10: =IF(Tabla248[[#This Row],[Costo afectado]]>0,[4]!RiskGamma(Tabla248[[#This Row],[Alpha]],Tabla248[[#This Row],[Beta]]),"ELIMINAR") -> ELIMINAR
E11: =IF(Tabla248[[#This Row],[Costo afectado]]>0,[4]!RiskGamma(Tabla248[[#This Row],[Alpha]],Tabla248[[#This Row],[Beta]]),"ELIMINAR") -> ELIMINAR
E12: =IF(Tabla248[[#This Row],[Costo afectado]]>0,[4]!RiskGamma(Tabla248[[#This Row],[Alpha]],Tabla248[[#This Row],[Beta]]),"ELIMINAR") -> ELIMINAR
E13: =IF(Tabla248[[#This Row],[Costo afectado]]>0,[4]!RiskGamma(Tabla248[[#This Row],[Alpha]],Tabla248[[#This Row],[Beta]]),"ELIMINAR") -> ELIMINAR
E14: =IF(Tabla248[[#This Row],[Costo afectado]]>0,[4]!RiskGamma(Tabla248[[#This Row],[Alpha]],Tabla248[[#This Row],[Beta]]),"ELIMINAR") -> ELIMINAR
E15: =IF(Tabla248[[#This Row],[Costo afectado]]>0,[4]!RiskGamma(Tabla248[[#This Row],[Alpha]],Tabla248[[#This Row],[Beta]]),"ELIMINAR") -> ELIMINAR
E16: =IF(Tabla248[[#This Row],[Costo afectado]]>0,[4]!RiskGamma(Tabla248[[#This Row],[Alpha]],Tabla248[[#This Row],[Beta]]),"ELIMINAR") -> ELIMINAR
E17: =IF(Tabla248[[#This Row],[Costo afectado]]>0,[4]!RiskGamma(Tabla248[[#This Row],[Alpha]],Tabla248[[#This Row],[Beta]]),"ELIMINAR") -> ELIMINAR
E18: =IF(Tabla248[[#This Row],[Costo afectado]]>0,[4]!RiskGamma(Tabla248[[#This Row],[Alpha]],Tabla248[[#This Row],[Beta]]),"ELIMINAR") -> ELIMINAR
E19: =IF(Tabla248[[#This Row],[Costo afectado]]>0,[4]!RiskGamma(Tabla248[[#This Row],[Alpha]],Tabla248[[#This Row],[Beta]]),"ELIMINAR") -> ELIMINAR
E20: =IF(Tabla248[[#This Row],[Costo afectado]]>0,[4]!RiskGamma(Tabla248[[#This Row],[Alpha]],Tabla248[[#This Row],[Beta]]),"ELIMINAR") -> ELIMINAR
E21: =IF(Tabla248[[#This Row],[Costo afectado]]>0,[4]!RiskGamma(Tabla248[[#This Row],[Alpha]],Tabla248[[#This Row],[Beta]]),"ELIMINAR") -> ELIMINAR

Sheet D.Pert (hidden)
A1: Riesgo | B1: Costo afectado | C1: Mínimo | D1: Moda | E1: Máximo | F1: Costo Esperado
F2: =IF(Tabla249[[#This Row],[Costo afectado]]>0,[4]!RiskPert(Tabla249[[#This Row],[Mínimo]],Tabla249[[#This Row],[Moda]],Tabla249[[#This Row],[Máximo]]),"ELIMINAR") -> ELIMINAR
F3: =IF(Tabla249[[#This Row],[Costo afectado]]>0,[4]!RiskPert(Tabla249[[#This Row],[Mínimo]],Tabla249[[#This Row],[Moda]],Tabla249[[#This Row],[Máximo]]),"ELIMINAR") -> ELIMINAR
F4: =IF(Tabla249[[#This Row],[Costo afectado]]>0,[4]!RiskPert(Tabla249[[#This Row],[Mínimo]],Tabla249[[#This Row],[Moda]],Tabla249[[#This Row],[Máximo]]),"ELIMINAR") -> ELIMINAR
F5: =IF(Tabla249[[#This Row],[Costo afectado]]>0,[4]!RiskPert(Tabla249[[#This Row],[Mínimo]],Tabla249[[#This Row],[Moda]],Tabla249[[#This Row],[Máximo]]),"ELIMINAR") -> ELIMINAR
F6: =IF(Tabla249[[#This Row],[Costo afectado]]>0,[4]!RiskPert(Tabla249[[#This Row],[Mínimo]],Tabla249[[#This Row],[Moda]],Tabla249[[#This Row],[Máximo]]),"ELIMINAR") -> ELIMINAR
F7: =IF(Tabla249[[#This Row],[Costo afectado]]>0,[4]!RiskPert(Tabla249[[#This Row],[Mínimo]],Tabla249[[#This Row],[Moda]],Tabla249[[#This Row],[Máximo]]),"ELIMINAR") -> ELIMINAR
F8: =IF(Tabla249[[#This Row],[Costo afectado]]>0,[4]!RiskPert(Tabla249[[#This Row],[Mínimo]],Tabla249[[#This Row],[Moda]],Tabla249[[#This Row],[Máximo]]),"ELIMINAR") -> ELIMINAR
F9: =IF(Tabla249[[#This Row],[Costo afectado]]>0,[4]!RiskPert(Tabla249[[#This Row],[Mínimo]],Tabla249[[#This Row],[Moda]],Tabla249[[#This Row],[Máximo]]),"ELIMINAR") -> ELIMINAR
F10: =IF(Tabla249[[#This Row],[Costo afectado]]>0,[4]!RiskPert(Tabla249[[#This Row],[Mínimo]],Tabla249[[#This Row],[Moda]],Tabla249[[#This Row],[Máximo]]),"ELIMINAR") -> ELIMINAR
F11: =IF(Tabla249[[#This Row],[Costo afectado]]>0,[4]!RiskPert(Tabla249[[#This Row],[Mínimo]],Tabla249[[#This Row],[Moda]],Tabla249[[#This Row],[Máximo]]),"ELIMINAR") -> ELIMINAR
F12: =IF(Tabla249[[#This Row],[Costo afectado]]>0,[4]!RiskPert(Tabla249[[#This Row],[Mínimo]],Tabla249[[#This Row],[Moda]],Tabla249[[#This Row],[Máximo]]),"ELIMINAR") -> ELIMINAR
F13: =IF(Tabla249[[#This Row],[Costo afectado]]>0,[4]!RiskPert(Tabla249[[#This Row],[Mínimo]],Tabla249[[#This Row],[Moda]],Tabla249[[#This Row],[Máximo]]),"ELIMINAR") -> ELIMINAR
F14: =IF(Tabla249[[#This Row],[Costo afectado]]>0,[4]!RiskPert(Tabla249[[#This Row],[Mínimo]],Tabla249[[#This Row],[Moda]],Tabla249[[#This Row],[Máximo]]),"ELIMINAR") -> ELIMINAR
F15: =IF(Tabla249[[#This Row],[Costo afectado]]>0,[4]!RiskPert(Tabla249[[#This Row],[Mínimo]],Tabla249[[#This Row],[Moda]],Tabla249[[#This Row],[Máximo]]),"ELIMINAR") -> ELIMINAR
F16: =IF(Tabla249[[#This Row],[Costo afectado]]>0,[4]!RiskPert(Tabla249[[#This Row],[Mínimo]],Tabla249[[#This Row],[Moda]],Tabla249[[#This Row],[Máximo]]),"ELIMINAR") -> ELIMINAR
F17: =IF(Tabla249[[#This Row],[Costo afectado]]>0,[4]!RiskPert(Tabla249[[#This Row],[Mínimo]],Tabla249[[#This Row],[Moda]],Tabla249[[#This Row],[Máximo]]),"ELIMINAR") -> ELIMINAR
F18: =IF(Tabla249[[#This Row],[Costo afectado]]>0,[4]!RiskPert(Tabla249[[#This Row],[Mínimo]],Tabla249[[#This Row],[Moda]],Tabla249[[#This Row],[Máximo]]),"ELIMINAR") -> ELIMINAR
F19: =IF(Tabla249[[#This Row],[Costo afectado]]>0,[4]!RiskPert(Tabla249[[#This Row],[Mínimo]],Tabla249[[#This Row],[Moda]],Tabla249[[#This Row],[Máximo]]),"ELIMINAR") -> ELIMINAR
F20: =IF(Tabla249[[#This Row],[Costo afectado]]>0,[4]!RiskPert(Tabla249[[#This Row],[Mínimo]],Tabla249[[#This Row],[Moda]],Tabla249[[#This Row],[Máximo]]),"ELIMINAR") -> ELIMINAR
F21: =IF(Tabla249[[#This Row],[Costo afectado]]>0,[4]!RiskPert(Tabla249[[#This Row],[Mínimo]],Tabla249[[#This Row],[Moda]],Tabla249[[#This Row],[Máximo]]),"ELIMINAR") -> ELIMINAR

Sheet D.Uniforme (hidden)
A1: Riesgo | B1: Costo afectado | C1: Mínimo | D1: Máximo | E1: Costo Esperado
E2: =IF(Tabla24910[[#This Row],[Costo afectado]]>0,[4]!RiskUniform(Tabla24910[[#This Row],[Mínimo]],Tabla24910[[#This Row],[Máximo]]),"ELIMINAR") -> ELIMINAR
E3: =IF(Tabla24910[[#This Row],[Costo afectado]]>0,[4]!RiskUniform(Tabla24910[[#This Row],[Mínimo]],Tabla24910[[#This Row],[Máximo]]),"ELIMINAR") -> ELIMINAR
E4: =IF(Tabla24910[[#This Row],[Costo afectado]]>0,[4]!RiskUniform(Tabla24910[[#This Row],[Mínimo]],Tabla24910[[#This Row],[Máximo]]),"ELIMINAR") -> ELIMINAR
E5: =IF(Tabla24910[[#This Row],[Costo afectado]]>0,[4]!RiskUniform(Tabla24910[[#This Row],[Mínimo]],Tabla24910[[#This Row],[Máximo]]),"ELIMINAR") -> ELIMINAR
E6: =IF(Tabla24910[[#This Row],[Costo afectado]]>0,[4]!RiskUniform(Tabla24910[[#This Row],[Mínimo]],Tabla24910[[#This Row],[Máximo]]),"ELIMINAR") -> ELIMINAR
E7: =IF(Tabla24910[[#This Row],[Costo afectado]]>0,[4]!RiskUniform(Tabla24910[[#This Row],[Mínimo]],Tabla24910[[#This Row],[Máximo]]),"ELIMINAR") -> ELIMINAR
E8: =IF(Tabla24910[[#This Row],[Costo afectado]]>0,[4]!RiskUniform(Tabla24910[[#This Row],[Mínimo]],Tabla24910[[#This Row],[Máximo]]),"ELIMINAR") -> ELIMINAR
E9: =IF(Tabla24910[[#This Row],[Costo afectado]]>0,[4]!RiskUniform(Tabla24910[[#This Row],[Mínimo]],Tabla24910[[#This Row],[Máximo]]),"ELIMINAR") -> ELIMINAR
E10: =IF(Tabla24910[[#This Row],[Costo afectado]]>0,[4]!RiskUniform(Tabla24910[[#This Row],[Mínimo]],Tabla24910[[#This Row],[Máximo]]),"ELIMINAR") -> ELIMINAR
E11: =IF(Tabla24910[[#This Row],[Costo afectado]]>0,[4]!RiskUniform(Tabla24910[[#This Row],[Mínimo]],Tabla24910[[#This Row],[Máximo]]),"ELIMINAR") -> ELIMINAR
E12: =IF(Tabla24910[[#This Row],[Costo afectado]]>0,[4]!RiskUniform(Tabla24910[[#This Row],[Mínimo]],Tabla24910[[#This Row],[Máximo]]),"ELIMINAR") -> ELIMINAR
E13: =IF(Tabla24910[[#This Row],[Costo afectado]]>0,[4]!RiskUniform(Tabla24910[[#This Row],[Mínimo]],Tabla24910[[#This Row],[Máximo]]),"ELIMINAR") -> ELIMINAR
E14: =IF(Tabla24910[[#This Row],[Costo afectado]]>0,[4]!RiskUniform(Tabla24910[[#This Row],[Mínimo]],Tabla24910[[#This Row],[Máximo]]),"ELIMINAR") -> ELIMINAR
E15: =IF(Tabla24910[[#This Row],[Costo afectado]]>0,[4]!RiskUniform(Tabla24910[[#This Row],[Mínimo]],Tabla24910[[#This Row],[Máximo]]),"ELIMINAR") -> ELIMINAR
E16: =IF(Tabla24910[[#This Row],[Costo afectado]]>0,[4]!RiskUniform(Tabla24910[[#This Row],[Mínimo]],Tabla24910[[#This Row],[Máximo]]),"ELIMINAR") -> ELIMINAR
E17: =IF(Tabla24910[[#This Row],[Costo afectado]]>0,[4]!RiskUniform(Tabla24910[[#This Row],[Mínimo]],Tabla24910[[#This Row],[Máximo]]),"ELIMINAR") -> ELIMINAR
E18: =IF(Tabla24910[[#This Row],[Costo afectado]]>0,[4]!RiskUniform(Tabla24910[[#This Row],[Mínimo]],Tabla24910[[#This Row],[Máximo]]),"ELIMINAR") -> ELIMINAR
E19: =IF(Tabla24910[[#This Row],[Costo afectado]]>0,[4]!RiskUniform(Tabla24910[[#This Row],[Mínimo]],Tabla24910[[#This Row],[Máximo]]),"ELIMINAR") -> ELIMINAR
E20: =IF(Tabla24910[[#This Row],[Costo afectado]]>0,[4]!RiskUniform(Tabla24910[[#This Row],[Mínimo]],Tabla24910[[#This Row],[Máximo]]),"ELIMINAR") -> ELIMINAR
E21: =IF(Tabla24910[[#This Row],[Costo afectado]]>0,[4]!RiskUniform(Tabla24910[[#This Row],[Mínimo]],Tabla24910[[#This Row],[Máximo]]),"ELIMINAR") -> ELIMINAR

Sheet Hoja4 (hidden)
A4: Tabla 6. Matriz de Clasificación de Riesgos | I4: Tabla 5. Clasificación de probabilidad de ocurrencia | N4: Tabla 4. Clasificación de nivel de impacto
C5: Nivel de impacto | I5: Probabilidad de ocurrencia | J5: Descripción | K5: Probabilidad | N5: Nivel de Impacto | O5: Criterio | P5: Impacto en Porcentaje
C6: Despreciable | D6: Mínimo | E6: Moderado | F6: Severo | G6: Crítico | I6: Muy Alto | J6: Es prácticamente un hecho que el riesgo ocurra durante el ciclo de vida del proyecto | K6: 0.95 | N6: Crítico | O6: Cualquier impacto que podría llevar a la cancelación o interrupción del proyecto | P6: 0.6
A7: Probabilidad de ocurrencia | B7: Muy alto | C7: Bajo | D7: Medio | E7: Alto | F7: Alto | G7: Muy alto | I7: Alto | J7: Es probable que el riesgo ocurra durante el ciclo de vida del proyecto | K7: 0.75 | N7: Severo | O7: Cualquier impacto que coloque en peligro el objetivo del proyecto o que puedan llevar a un impacto significativo en el largo plazo | P7: 0.2
B8: Alto | C8: Bajo | D8: Medio | E8: Alto | F8: Alto | G8: Muy alto | I8: Moderado | J8: Puede o no ocurrir el riesgo ocurra durante el ciclo de vida del proyecto | K8: 0.5 | N8: Moderado | O8: Cualquier impacto que causaría un cambio en la planificación de manera significativa o que podría conducir a un efecto notable e inoportuno para el proyecto | P8: 0.1
B9: Moderado | C9: Bajo | D9: Medio | E9: Medio | F9: Alto | G9: Muy alto | I9: Bajo | J9: Es improbable que el riesgo ocurra durante el ciclo de vida del proyecto | K9: 0.25 | N9: Mínimo | O9: Cualquier impacto que puede ser tratado al interior del equipo de proyecto y que no tendría ningún efecto en el largo plazo | P9: 0.05
B10: Bajo | C10: Muy bajo | D10: Bajo | E10: Medio | F10: Medio | G10: Alto | I10: Muy Bajo | J10: Es muy difícil que el riesgo ocurra durante el ciclo de vida del proyecto | K10: 0.05 | N10: Despreciable | O10: Cualquier impacto que afecta de manera insignificante o produce algún efecto adverso significativo sobre el ciclo de vida del proyecto | P10: 0.01
B11: Muy bajo | C11: Muy bajo | D11: Muy bajo | E11: Bajo | F11: Bajo | G11: Medio
C13: Despreciable | D13: Mínimo | E13: Moderado | F13: Severo | G13: Crítico
B14: Muy alto | C14: =K6*$P$10 -> 0.0095 | D14: =K6*$P$9 -> 0.0475 | E14: =K6*$P$8 -> 0.095 | F14: =K6*$P$7 -> 0.19 | G14: =K6*$P$6 -> 0.57
B15: Alto | C15: =K7*$P$10 -> 0.0075 | D15: =K7*$P$9 -> 0.0375 | E15: =K7*$P$8 -> 0.075 | F15: =K7*$P$7 -> 0.15 | G15: =K7*$P$6 -> 0.45
B16: Moderado | C16: =K8*$P$10 -> 0.005 | D16: =K8*$P$9 -> 0.025 | E16: =K8*$P$8 -> 0.05 | F16: =K8*$P$7 -> 0.1 | G16: =K8*$P$6 -> 0.3
B17: Bajo | C17: =K9*$P$10 -> 0.0025 | D17: =K9*$P$9 -> 0.0125 | E17: =K9*$P$8 -> 0.025 | F17: =K9*$P$7 -> 0.05 | G17: =K9*$P$6 -> 0.15
B18: Muy bajo | C18: =K10*$P$10 -> 0.0005 | D18: =K10*$P$9 -> 0.0025 | E18: =K10*$P$8 -> 0.005 | F18: =K10*$P$7 -> 0.01 | G18: =K10*$P$6 -> 0.03
C20: L. Inferior | D20: L. Superior
B21: Muy alto | C21: 0.3 | D21: 1
B22: Alto | C22: 0.075 | D22: 0.2999 | G22: Clasificación
B23: Medio | C23: 0.025 | D23: 0.0749 | G23: Muy alto | H23: ≥30%
B24: Bajo | C24: 0.005 | D24: 0.0249 | G24: Alto | H24: ≥10% <30%
B25: Muy bajo | C25: 0 | D25: 0.0049 | G25: Medio | H25: ≥2,5% <10%
G26: Bajo | H26: ≥0,5% <2,5%
G27: Muy bajo | H27: <0,5%
K30: Probabilidad de ocurrencia | L30: Probabilidad Porcentual | M30: Detalle
K31: Muy Alto | L31: ≤95% | M31: Posee una alta probabilidad de que el riesgo ocurra durante el ciclo de vida del proyecto
K32: Alto | L32: ≤75%>95% | M32: Es probable que el riesgo ocurra durante el ciclo de vida del proyecto
K33: Moderado | L33: ≤50%>75% | M33: Es medianamente probable que el riesgo ocurra durante el ciclo de vida del proyecto
K34: Bajo | L34: ≤25%>50% | M34: Es muy poco probable que el riesgo ocurra durante el ciclo de vida del proyecto
K35: Muy Bajo | L35: >5%>25% | M35: Es muy difícil que el riesgo ocurra durante el ciclo de vida del proyecto

Sheet Hoja3 (hidden)
A1: Etapa | B1: Asignación | C1: Distribuciones de probabilidad | D1: Tipos de riesgo | E1: Sector | F1: Instituciones
A2: Perfil | B2: Retenido | C2: Triangular | D2: Riesgo de la etapa de diseño | E2: Trabajo y seguridad social | F2: Academia Nacional de Ciencias
A3: Prefactibilidad | B3: Transferido | C3: Normal Estándar | D3: Riesgo en etapa de construcción | E3: Desarrollo humano e inclusión social | F3: Agencia de Protección de Datos de los Habitantes (PRODHAB)
A4: Factibilidad | B4: Compartido | C4: LogNormal | D4: Riesgo de expropiación de terrenos | E4: Desarrollo agropecuario y rural | F4: Agencia Espacial Costarricense (AEC)
A5: Diseño | C5: Erlang | D5: Riesgo geológico / geotécnico | E5: Educativo | F5: Auditoría General de Servicios de Salud
A6: Financiamiento | C6: Exponencial | D6: Riesgo de afectación al ecosistema | E6: Salud, nutrición y deporte | F6: Autoridad Reguladora de los Servicios Públicos (ARESEP)
A7: Licitación y contratación | C7: Gamma | D7: Riesgo arqueológico | E7: Ambiente, energía, mares y ordenamiento territorial | F7: Banco Central de Costa Rica (BCCR)
A8: Pre ejecución | C8: Pert | D8: Riesgos vinculados al proceso de obtención de permisos y licencias | E8: Hacienda pública, monetario y supervisión financiera | F8: Banco de Costa Rica (BCR)
A9: Ejecución | C9: Uniforme | D9: Riesgo de infraestructura existente transferida | E9: Cultura y juventud | F9: Banco Hipotecario de la Vivienda (BANHVI)
A10: Pre operación | D10: Riesgo por inversiones adicionales | E10: Transporte e infraestructura | F10: Banco Nacional de Costa Rica (BNCR)
A11: Operación | D11: Riesgo de financiamiento | E11: Seguridad ciudadana y justicia | F11: Banco Popular y de Desarrollo Comunal (BPDC)
D12: Riesgo de tasa de interés | E12: Ciencia, tecnología, telecomunicaciones y gobernanza digital | F12: BCR Corredora de Seguros S.A.
D13: Riesgo de ingresos | E13: Economía, industria y comercio | F13: BCR Pensión Operadora de Planes de Pensiones Complementarias S.A.
D14: Riesgo de subestimación de costos de mantenimiento | E14: Política internacional | F14: BCR Sociedad Administradora de Fondos de Inversión S.A. (SAFI)
D15: Riesgo por terminación anticipada del contrato | E15: Vivienda y asentamientos humanos | F15: BCR Valores Puesto de Bolsa S.A.
D16: Riesgo de tipo de cambio | E16: Comercio exterior | F16: Benemérito Cuerpo de Bomberos de C.R
D17: Riesgos de fuerza mayor | E17: Turismo | F17: BN Sociedad Administradora de Fondos de Inversión S.A.
D18: Riesgos regulatorios o normativos | F18: BN Sociedad Corredora de Seguros S.A.
D19: Riesgo político / riesgo de impago | F19: BN Valores Puesto de Bolsa S.A.
D20: Riesgo de inflación | F20: BN Vital Operadora de Planes de Pensiones Complementarias S.A.
D21: Riesgo a la integridad pública | F21: Caja Costarricense de Seguro Social (CCSS)
D22: Riesgo de operación | F22: Casa de la Cultura de Puntarenas
D23: Riesgo de Información | F23: Centro Costarricense de Producción Cinematográfica
D24: Riesgo de obsolescencia | F24: Centro Cultural e Histórico José Figueres Ferrer
D25: Riesgos Tecnológicos | F25: Centro Histórico de la Reforma Agraria de Costa Rica y el Parque Temático
F26: Centro Nacional de la Música
F27: Colegio de Abogados
F28: Colegio de Biólogos
F29: Colegio de Ciencias Económicas de Costa Rica
F30: Colegio de Cirujanos Dentistas de Costa Rica
F31: Colegio de Contadores Privados de Costa Rica
F32: Colegio de Contadores Públicos de Costa Rica
F33: Colegio de Enfermeras de Costa Rica
F34: Colegio de Farmacéuticos
F35: Colegio de Físicos
F36: Colegio de Geólogos
F37: Colegio de Ingenieros Agrónomos de Costa Rica
F38: Colegio de Ingenieros Químicos y Profesionales Afines
F39: Colegio de Licenciados y Profesores en Letras, Filosofía, Ciencias y Artes (COLYPRO)
F40: Colegio de Médicos Veterinarios
F41: Colegio de Médicos y Cirujanos
F42: Colegio de Microbiólogos y Químicos Clínicos de Costa Rica
F43: Colegio de Optometristas de Costa Rica
F44: Colegio de Periodistas de Costa Rica
F45: Colegio de Profesionales en Bibliotecología de Costa Rica
F46: Colegio de Profesionales en Ciencias Políticas y Relaciones Internacionales
F47: Colegio de Profesionales en Criminología de Costa Rica
F48: Colegio de Profesionales en Geografía
F49: Colegio de Profesionales en Informática y Computación
F50: Colegio de Profesionales en Nutrición
F51: Colegio de Profesionales en Orientación
F52: Colegio de Profesionales en Quiropráctica
F53: Colegio de Profesionales en Secretariado de Costa Rica
F54: Colegio de Profesionales en Sociología de Costa Rica
F55: Colegio de Químicos de Costa Rica
F56: Colegio de Terapeutas
F57: Colegio de Trabajadores Sociales
F58: Colegio Federado de Ingenieros y Arquitectos (CFIA)
F59: Colegio Profesional de Psicólogos de Costa Rica
F60: Colegio San Luis Gonzaga de Cartago
F61: Colegio Universitario de Cartago (CUC)
F62: Colegio Universitario de Limón (CUNLIMON)
F63: Comisión Costarricense de Cooperación con UNESCO
F64: Comisión de Energía Atómica (CEA)
F65: Comisión de Ordenamiento y Manejo de la Cuenca Alta del Río Reventazón (COMCURE)
F66: Comisión Interinstitucional de Marinas y Atracaderos turísticos (CIMAT)
F67: Comisión Nacional de Asuntos Indígenas (CONAI)
F68: Comisión Nacional de Préstamos para la Educación (CONAPE)
F69: Comisión Nacional de Prevención de Riesgos y Atención de Emergencias (CNE)
F70: Comisión Nacional de Vacunación y Epidemiología
F71: Comisión Nacional del Consumidor (CNC)
F72: Comisión Nacional Interinstitucional para atender a las mujeres en condiciones de pobreza
F73: Comisión Nacional para la Gestión de la Biodiversidad (CONAGEBIO)
F74: Comisión para Promover la Competencia (COPROCOM)
F75: Comisión Reguladora de Turismo
F76: Compañía Nacional de Fuerza y Luz S. A. (CNFL)
F77: Concejo Municipal de Distrito de Cervantes
F78: Concejo Municipal de Distrito de Cóbano
F79: Concejo Municipal de Distrito de Colorado
F80: Concejo Municipal de Distrito de Lepanto
F81: Concejo Municipal de Distrito de Monteverde
F82: Concejo Municipal de Distrito de Paquera
F83: Concejo Municipal de Distrito de Peñas Blancas
F84: Concejo Municipal de Distrito de Tucurrique
F85: Consejo de Seguridad Vial (COSEVI)
F86: Consejo de Transporte Público (CTP)
F87: Consejo Interinstitucional de Atención a la Madre Adolescente
F88: Consejo Nacional de Clubes 4-S (CONAC)
F89: Consejo Nacional de Concesiones (CNC)
F90: Consejo Nacional de Cooperativas (CONACOOP)
F91: Consejo Nacional de Enseñanza Superior Universitaria Privada (CONESUP)
F92: Consejo Nacional de Investigación en Salud (CONIS)
F93: Consejo Nacional de la Persona Adulta Mayor (CONAPAM)
F94: Consejo Nacional de Personas con Discapacidad (CONAPDIS)
F95: Consejo Nacional de Política Pública de la Persona Joven
F96: Consejo Nacional de Producción (CNP)
F97: Consejo Nacional de Salarios
F98: Consejo Nacional de Supervisión del Sistema Financiero (CONASSIF)
F99: Consejo Nacional de Vialidad (CONAVI)
F100: Consejo Técnico de Asistencia Médico Social (CTAMS)
F101: Consejo Técnico de Aviación Civil (CETAC)
F102: Contraloría General de la República (CGR)
F103: Corporación Arrocera Nacional (CONARROZ)
F104: Corporación Bananera Nacional S.A. (CORBANA)
F105: Corporación Ganadera Nacional (CORFOGA)
F106: Corporación Hortícola Nacional
F107: Correos de Costa Rica S.A.
F108: Defensoría de los Habitantes de la República (DHR)
F109: Dirección General de Migración y Extranjería (DGME)
F110: Dirección General de Servicio Civil (DGSC)
F111: Dirección General del Archivo Nacional
F112: Dirección Nacional de Centros de Educación y Nutrición y de Centros Infantiles de Atención Integral (CEN-CINAI)
F113: Dirección Nacional de Desarrollo de la Comunidad (DINADECO)
F114: Dirección Nacional de Notariado (DNN)
F115: Editorial Costa Rica (ECR)
F116: Empresa de Servicios Públicos de Heredia S.A. (ESPH)
F117: Ente Costarricense de Acreditación (ECA)
F118: Fondo de Apoyo para la Educación Superior y Técnica del Puntarenense
F119: Fondo de Desarrollo de la Provincia de Limón (FODELI)
F120: Fondo Nacional de Becas de Solidaridad Social
F121: Fondo Nacional de Estabilización Cafetalera (FONECAFE)
F122: Fondo Nacional de Financiamiento Forestal (FONAFIFO)
F123: Fondo Nacional de Sostenibilidad Cafetalera (FONASCAFE)
F124: Gestión de Cobro ICE. S.A
F125: INS Servicios S.A.
F126: INS Sociedad Administradora de Fondos de Inversión S.A. (INS-SAFI)
F127: INS Valores Puesto de Bolsa S.A.
F128: INS-Red de Servicios de Salud
F129: Instituto Centroamericano de Extensión de la Cultura (ICECU)
F130: Instituto Costarricense de Acueductos y Alcantarillados (AyA)
F131: Instituto Costarricense de Deporte y la Recreación (ICODER)
F132: Instituto Costarricense de Electricidad (ICE)
F133: Instituto Costarricense de Ferrocarriles (INCOFER)
F134: Instituto Costarricense de Investigación y Enseñanza en Nutrición y Salud (INCIENSA)
F135: Instituto Costarricense de Pesca y Acuicultura (INCOPESCA)
F136: Instituto Costarricense de Puertos del Pacífico (INCOP)
F137: Instituto Costarricense de Turismo (ICT)
F138: Instituto Costarricense Sobre Drogas (ICD)
F139: Instituto de Desarrollo Profesional Uladislao Gámez Solano
F140: Instituto de Desarrollo Rural (INDER)
F141: Instituto de Fomento y Asesoría Municipal (IFAM)
F142: Instituto del Café de Costa Rica (ICAFE)
F143: Instituto Mixto de Ayuda Social (IMAS)
F144: Instituto Nacional de Aprendizaje (INA)
F145: Instituto Nacional de Estadística y Censos (INEC)
F146: Instituto Nacional de Fomento Cooperativo (INFOCOOP)
F147: Instituto Nacional de Innovación y Transferencia en Tecnología Agropecuaria (INTA)
F148: Instituto Nacional de las Mujeres (INAMU)
F149: Instituto Nacional de Seguros (INS)
F150: Instituto Nacional de Vivienda y Urbanismo (INVU)
F151: Instituto sobre Alcoholismo y Farmacodependencia (IAFA)
F152: Instituto Tecnológico de Costa Rica (ITCR)
F153: Junta Administrativa de la Imprenta Nacional
F154: Junta Administrativa del Registro Nacional
F155: Junta Administrativa del Servicio Eléctrico Municipal de Cartago (JASEC)
F156: Junta de Administración Portuaria y de Desarrollo Económico de la Vertiente Atlántica (JAPDEVA)
F157: Junta de Desarrollo Regional de la Zona Sur (JUDESUR)
F158: Junta de Pensiones y Jubilaciones del Magisterio Nacional (JUPEMA)
F159: Junta de Protección Social (JPS)
F160: Junta Directiva del Parque Nacional Isla San Lucas
F161: Junta Directiva para el fideicomiso del Parque Nacional Manuel Antonio
F162: Junta Promotora de Turismo de la Ciudad de Puntarenas
F163: Laboratorio Costarricense de Metrología (LACOMET)
F164: Liga Agrícola Industrial de la Caña de Azúcar (LAICA)
F165: Mecanismo Nacional de Prevención contra la Tortura y otros tratos o penas crueles, inhumanos y degradantes
F166: Ministerio de Agricultura y Ganadería (MAG)
F167: Ministerio de Ambiente y Energía (MINAE)
F168: Ministerio de Ciencia, Innovación, Tecnología y Telecomunicaciones (MICITT)
F169: Ministerio de Comercio Exterior (COMEX)
F170: Ministerio de Cultura y Juventud (MCJ)
F171: Ministerio de Economía Industria y Comercio (MEIC)
F172: Ministerio de Educación Pública (MEP)
F173: Ministerio de Gobernación y Policía
F174: Ministerio de Hacienda
F175: Ministerio de Justicia y Paz
F176: Ministerio de la Presidencia
F177: Ministerio de Obras Públicas y Transportes (MOPT)
F178: Ministerio de Planificación Nacional y Política Económica (MIDEPLAN)
F179: Ministerio de Relaciones Exteriores y Culto
F180: Ministerio de Salud
F181: Ministerio de Seguridad Pública (MSP)
F182: Ministerio de Trabajo y Seguridad Social (MTSS)
F183: Ministerio de Vivienda y Asentamientos Humanos (MIVAH)
F184: Municipalidad de Abangares
F185: Municipalidad de Acosta
F186: Municipalidad de Alajuela
F187: Municipalidad de Alajuelita
F188: Municipalidad de Alvarado
F189: Municipalidad de Aserrí
F190: Municipalidad de Atenas
F191: Municipalidad de Bagaces
F192: Municipalidad de Barva
F193: Municipalidad de Belén
F194: Municipalidad de Buenos Aires
F195: Municipalidad de Cañas
F196: Municipalidad de Carrillo
F197: Municipalidad de Cartago
F198: Municipalidad de Corredores
F199: Municipalidad de Coto Brus
F200: Municipalidad de Curridabat
... 124 more rows

Sheet Indicadores
B3: Clasificación de nivel de riesgo | F3: Clasificación de Probabilidad de riesgo
B4: Nivel de Impacto | C4: Criterio | D4: Impacto en Porcentaje | F4: Probabilidad de ocurrencia | G4: Descripción | H4: Probabilidad
B5: Crítico | C5: Cualquier impacto que podría llevar a la cancelación o interrupción del proyecto | D5: ≥60% | F5: Muy Alto | G5: Es prácticamente un hecho que el riesgo ocurra durante el ciclo de vida del proyecto | H5: ≥95%
B6: Severo | C6: Cualquier impacto que coloque en peligro el objetivo del proyecto o que puedan llevar a un impacto significativo en el largo plazo | D6: ≥20% <60% | F6: Alto | G6: Es probable que el riesgo ocurra durante el ciclo de vida del proyecto | H6: ≥75% <95%
B7: Moderado | C7: Cualquier impacto que causaría un cambio en la planificación de manera significativa o que podría conducir a un efecto notable e inoportuno para el proyecto | D7: ≥10% <20% | F7: Moderado | G7: Puede o no ocurrir el riesgo ocurra durante el ciclo de vida del proyecto | H7: ≥50% <75%
B8: Mínimo | C8: Cualquier impacto que puede ser tratado al interior del equipo de proyecto y que no tendría ningún efecto en el largo plazo | D8: ≥5% <10% | F8: Bajo | G8: Es improbable que el riesgo ocurra durante el ciclo de vida del proyecto | H8: ≥25% <50%
B9: Despreciable | C9: Cualquier impacto que afecta de manera insignificante o produce algún efecto adverso significativo sobre el ciclo de vida del proyecto | D9: <5% | F9: Muy Bajo | G9: Es muy difícil que el riesgo ocurra durante el ciclo de vida del proyecto | H9: ≥5% <25%
B11: Riesgos | D11: Descripción
B12: Riesgo de la etapa de diseño | D12: Corresponden a errores o deficiencias en el diseño o en los estudios técnicos, que repercuten en el costo o la calidad de la infraestructura, nivel de servicio y/o que pueden provocar retrasos en la ejecución de la obra, variar las especificaciones establecidas por la Administración o generar desviaciones en la obra o servicio que repercuten en la inviabilidad del mismo. En el diseño de las obras deben contemplarse todas las amenazas del proyecto incluidas las naturales, socionaturales o antrópicas que podrían incidir sobre el proyecto.
B13: Riesgo en etapa de construcción | D13: Dicho riesgo está asociado a todos los eventos que pueden presentarse durante la etapa constructiva, afectando el costo o presupuesto, tiempo y calidad del proyecto.
B14: Riesgo de expropiación de terrenos | D14: Consiste en la no disponibilidad del predio o predios donde construir la infraestructura, provocando retrasos en el comienzo de las obras y sobrecostos en la ejecución de las mismas.
B15: Riesgo geológico / geotécnico | D15: El riesgo geológico/geotécnico identifica las condiciones previstas en los estudios de mecánica de suelos de la fase de formulación y/o estructuración que redunde en sobrecostos o ampliación de plazos de construcción de la infraestructura.
B16: Riesgo de afectación al ecosistema | D16: Corresponde al incumplimiento de la normativa ambiental y demora por subsanar las medidas definidas en la aprobación de los estudios ambientales. El primer efecto derivado del incumplimiento de la normativa ambiental es el propio daño ambiental, el que adicionalmente ocasionará paralizaciones de la obra con los consiguientes sobrecostos y demoras, así como penalidades y sanciones, y en último caso resolución del contrato.
B17: Riesgo arqueológico | D17: Hallazgos de restos arqueológicos que puedan generar la interrupción del normal desarrollo de las obras de acuerdo a los plazos establecidos en el contrato o sobre costos en la ejecución de las mismas.
B18: Riesgos vinculados al proceso de obtención de permisos y licencias | D18: Corresponde a los permisos y/o licencias que deben obtenerse antes de iniciar la etapa de ejecución y que podrían generar atrasos si no se obtienen en los plazos requeridos.
B19: Riesgo de infraestructura existente transferida | D19: Es el riesgo existente en la infraestructura ya construida y que se transfiere como parte de la obra o proyecto. Esto lleva implícito costos asociados de inversión para las mejoras necesarias o reparación de daños no considerados inicialmente sobre dichas obras, y que serán necesarias de realizar para alcanzar el óptimo funcionamiento y desarrollo del proyecto.
B20: Riesgo por inversiones adicionales | D20: Cualquier obra adicional no contemplada en el presupuesto y diseño original, derivado de condiciones físicas no identificadas previamente o por cambios en los objetivos, cobertura, necesidades y condiciones de la obra.
B21: Riesgo de financiamiento | D21: El riesgo de financiamiento consiste en la imposibilidad de negociación y firma de un contrato de crédito, aporte en el capital social, aprobación de presupuesto o ampliación del mismo, o afectación en la colocación de bonos, recursos necesarios para el financiamiento del proyecto en el plazo previsto.
B22: Riesgo de tasa de interés | D22: Variaciones en el tipo de interés al cual está referenciado el financiamiento. En particular, en la fase de construcción de una infraestructura, un incremento en el tipo de interés redundará en mayores necesidades de financiamiento y por tanto en un sobre costo de construcción.
B23: Riesgo de ingresos | D23: El riesgo de ingreso corresponde a la pérdida de estabilidad y previsibilidad de los flujos de caja del proyecto para cubrir el servicio de la deuda. Se parte de la premisa del mecanismo de pago o ingreso que se configure en el proceso de estructuración del proyecto, donde se pueden generar distintos escenarios en cuanto a los ingresos a percibir por el privado o la entidad pública durante la fase de explotación de la infraestructura, sea por tarifa, pago por disponibilidad y aportes directos del Estado, entre otros. No obstante, el riesgo de ingreso puede ser positivo, generando flujos superiores a los previstos, por lo que contractualmente debe velarse que se establezca la coparticipación o retribución al Estado ante estas situaciones, cuando la inversión corresponde a un privado.
B24: Riesgo de subestimación de costos de mantenimiento | D24: Estos riesgos están asociados a una inadecuada planificación y estimación de las intervenciones en mantenimiento requeridas por los diferentes componentes del proyecto.
B25: Riesgo por terminación anticipada del contrato | D25: La terminación anticipada se subdivide en tres tipos de riesgo. i. Riesgo de terminación anticipada por incumplimiento de la Administración o resolución unilateral de éste: Este riesgo es asumido por la Administración, el privado tiene derecho a una indemnización el cual está regulado contractualmente, con base en el derecho. ii. Riesgo de terminación anticipada por incumplimiento del privado: El riesgo de incumplimiento de las obligaciones contractuales está totalmente transferido al privado, ya que aparte de la aplicación de penalidades y sanciones, llevaría en su extremo a la terminación del contrato. Sin embargo, se debe tener en cuenta que, independientemente de su origen, la ocurrencia de este evento siempre impactará directamente a la Administración ya que debe hacer frente a las demoras, y a los costos por reducción de la eficiencia, al no contar con la infraestructura en las condiciones y plazos esperados; a la re-licitación del proyecto y al costo social relacionado con la prestación de los servicios públicos asociados. Adicionalmente, este riesgo impacta en los financistas del proyecto (por la posible insuficiencia de la liquidez, para hacer frente a los costos de ruptura de los contratos de financiamiento con sus acreedores permitidos), ya que esta circunstancia influye en las posibilidades del proyecto de obtener financiamiento en los mercados. iii. Terminación anticipada por causas de fuerza mayor, caso en el que se aplicarán las reglas explicadas en el apartado correspondiente a este riesgo.
B26: Riesgo de tipo de cambio | D26: El riesgo cambiario comprenderá cualquier potencial pérdida derivada de la exposición a variaciones en la tasa de cambio entre dos monedas, para cualquier etapa del proyecto en generación de sobre costos para el mismo.
B27: Riesgos de fuerza mayor | D27: Los riesgos de fuerza mayor son definidos como eventos que están fuera del control de las partes, y su ocurrencia otorga el derecho de solicitar la suspensión de las obligaciones estipuladas en el contrato. Los eventos de fuerza mayor, que causan demoras, pueden a menudo ser resueltos asignando los costos entre las partes. Eventos graves de fuerza mayor pueden conducir a la interrupción de la ejecución del proyecto. Riesgos de Fuerza Mayor Asegurables: Éstos se refieren al impacto adverso sobre la ejecución u operación del proyecto, que tendrían los fenómenos naturales que superan los umbrales de excedencia analizados en la fase de preinversión, en la etapa de diseño y/o carteles de licitación. Normalmente este tipo de riesgos de fuerza mayor son asegurables. Riesgo de Fuerza Mayor no asegurables: Se refieren de manera exclusiva al daño emergente derivado de actos de terrorismo, guerras, pandemias o eventos extraordinarios que alteren el orden público. Sólo si estos riesgos son acordados como tales contractualmente, estarán dentro de la categoría de riesgos de fuerza mayor y en los contratos se establecerá su mecanismo de cobertura. Las consecuencias de eventos de fuerza mayor no asegurables que impliquen pagos al inversionista privado, tales como terminaciones anticipadas de los contratos, no podrán ser pagados a través del Fondo de Contingencias.
B28: Riesgos regulatorios o normativos | D28: Corresponde a modificaciones normativas pertinentes que sean de aplicación al proyecto en cualquiera de sus etapas, pudiendo estas modificaciones generar un impacto en los costos o en los plazos de la obra.
B29: Riesgo político / riesgo de impago | D29: Este riesgo corresponde a la exposición por diferentes medidas o políticas que pueda adoptar el Estado, en relación con impedir los ingresos tarifarios o cambios en los compromisos que la Administración contrajo, o la cancelación temporal o definitiva del proyecto.
B30: Riesgo de inflación | D30: Durante la etapa de construcción el principal efecto de la inflación recae sobre los precios de los insumos, y eventualmente sobre el costo de la mano de obra, es decir, puede generar un sobre costo en el proyecto.
B31: Riesgo a la integridad pública | D31: El Riesgo a la integridad pública parte de elementos como corrupción, sobornos, tráfico de influencias, los cuales deben ser valorados en los diferentes proyectos. nivel de oposición pública en contra del proyecto, huelgas, revueltas o conmoción civil, vandalismo.
B32: Riesgo de Operación | D32: El riesgo de operación se refiere a que el proyecto pueda sufrir una afectación en la calidad del bien o servicio que se brinda a los usuarios, o que el proyecto incurra en costos operativos mayores de los previstos. Cualquiera de estos puede resultar en una reducción de los flujos de efectivo proyectados o en un incumplimiento de los estándares definidos.
B33: Riesgo de Información | D33: El riesgo de información nace de la no disponibilidad en tiempo y forma, total o parcial, de la información requerida por alguna de las partes involucradas en el proyecto, o que la misma este alterada, sea falsa, o insuficiente en los términos y plazos acordados contractualmente o por solicitud extraordinaria.
B34: Riesgo de Obsolescencia | D34: Es el riesgo del bien o servicio debido a cambios en las variantes de vida útil, eficiencia, innovación o tecnología.
B35: Riesgos Tecnológicos | D35: Este se encuentra relacionado con no contar con la tecnología requerida para llevar a cabo el proyecto, seguridad cibernética y respuesta ante incidentes, ausencia o problemas relacionados al proveedor de tecnología y de terceros, de administración de datos u operaciones de tecnología.

Sheet XLRisk
A1: Simulation Settings | D1: Simulation Inputs | G1: Simulation Outputs
A2: Seed | B2: 0
A3: Update Screen | B3: FALSE | D3: Range | E3: Formula | G3: Range | H3: Name
A4: Iterations | B4: 10000 | D4: MGR!$R$6 | E4: IF((OR(SUM(Tabla2[Costo Esperado])>0,SUM(Tabla12[Costo Esperado])>0,SUM(Tabla25[Costo Esperado])>0,SUM(Tabla24[Costo Esperado])>0,SUM(Tabla246[Costo Esperado])>0,SUM(Tabla2467[Costo Esperado])>0,SUM(Tabla248[Costo Esperado])>0,SUM(Tabla249[Costo Esperado])>0,SUM(Tabla24910[Costo Esperado])>0)),"ELIMINAR",IF(P6>0,RiskTriang(P6*0.75,P6,P6*1.25),"ELIMINAR")) | G4: =[4]!AddressWithSheet(Resultados!$D$4) -> Resultados!$D$4 | H4: Costo Total Esperado
A5: Latin Hypercube | B5: TRUE
A6: Calculate data dables during simulation | B6: TRUE
A10: Macro to run before each iteration
A11: Macro to run after each iteration
